{"text_format":"3","workbook":"xlsx","n_sheets":4,"sheets":["REZUMATUL BUGETULUI AC","REZUMAT CHELTUIELI LUNARE","CHELTUIELI STRUCTURATE","CARITATE ȘI SPONSORIZĂRI"],"not_rendered":{"images":1,"defined_names":15},"read":"whole","date_system":"1900"}

{"sheet":"REZUMATUL BUGETULUI AC","index":0,"n_rows":16,"n_cols":7,"rows_kept":16,"merged":[[1,1,1,4]]}
[]
[null,"COSTURI REALE vs. BUGET DE LA ÎNCEPUTUL ANULUI PÂNĂ LA ZI",{"$nulls":3},"ANUL",{"$f":"YEAR(TODAY())","v":2019}]
[null,"Codul de contabilitate","Titlu cont","Costuri reale","Buget","Lei rămași","% rămas"]
[null,1000,"Publicitate",{"$f":"SUMIF(RezumatCheltuieliLunare[Codul de contabilitate],TabelAnulCurent[[#This Row],[Codul de contabilitate]],RezumatCheltuieliLunare[Total])","v":{"v":0,"d":"0.00 lei"}},{"v":100000,"d":"100,000.00 lei"},{"$f":"IF(TabelAnulCurent[[#This Row],[Buget]]=\"\",\"\",TabelAnulCurent[[#This Row],[Buget]]-TabelAnulCurent[[#This Row],[Costuri reale]])","v":{"v":100000,"d":"100,000.00 lei"}},{"$f":"IFERROR(TabelAnulCurent[[#This Row],[Lei rămași]]/TabelAnulCurent[[#This Row],[Buget]],\"\")","v":{"v":1,"d":"100.00%"}}]
[null,2000,"Echipament birou",{"$f":"SUMIF(RezumatCheltuieliLunare[Codul de contabilitate],TabelAnulCurent[[#This Row],[Codul de contabilitate]],RezumatCheltuieliLunare[Total])","v":{"v":0,"d":"0.00 lei"}},{"v":100000,"d":"100,000.00 lei"},{"$f":"IF(TabelAnulCurent[[#This Row],[Buget]]=\"\",\"\",TabelAnulCurent[[#This Row],[Buget]]-TabelAnulCurent[[#This Row],[Costuri reale]])","v":{"v":100000,"d":"100,000.00 lei"}},{"$f":"IFERROR(TabelAnulCurent[[#This Row],[Lei rămași]]/TabelAnulCurent[[#This Row],[Buget]],\"\")","v":{"v":1,"d":"100.00%"}}]
[null,3000,"Imprimante",{"$f":"SUMIF(RezumatCheltuieliLunare[Codul de contabilitate],TabelAnulCurent[[#This Row],[Codul de contabilitate]],RezumatCheltuieliLunare[Total])","v":{"v":0,"d":"0.00 lei"}},{"v":100000,"d":"100,000.00 lei"},{"$f":"IF(TabelAnulCurent[[#This Row],[Buget]]=\"\",\"\",TabelAnulCurent[[#This Row],[Buget]]-TabelAnulCurent[[#This Row],[Costuri reale]])","v":{"v":100000,"d":"100,000.00 lei"}},{"$f":"IFERROR(TabelAnulCurent[[#This Row],[Lei rămași]]/TabelAnulCurent[[#This Row],[Buget]],\"\")","v":{"v":1,"d":"100.00%"}}]
[null,4000,"Costuri server",{"$f":"SUMIF(RezumatCheltuieliLunare[Codul de contabilitate],TabelAnulCurent[[#This Row],[Codul de contabilitate]],RezumatCheltuieliLunare[Total])","v":{"v":0,"d":"0.00 lei"}},{"v":100000,"d":"100,000.00 lei"},{"$f":"IF(TabelAnulCurent[[#This Row],[Buget]]=\"\",\"\",TabelAnulCurent[[#This Row],[Buget]]-TabelAnulCurent[[#This Row],[Costuri reale]])","v":{"v":100000,"d":"100,000.00 lei"}},{"$f":"IFERROR(TabelAnulCurent[[#This Row],[Lei rămași]]/TabelAnulCurent[[#This Row],[Buget]],\"\")","v":{"v":1,"d":"100.00%"}}]
[null,5000,"Consumabile",{"$f":"SUMIF(RezumatCheltuieliLunare[Codul de contabilitate],TabelAnulCurent[[#This Row],[Codul de contabilitate]],RezumatCheltuieliLunare[Total])","v":{"v":0,"d":"0.00 lei"}},{"v":50000,"d":"50,000.00 lei"},{"$f":"IF(TabelAnulCurent[[#This Row],[Buget]]=\"\",\"\",TabelAnulCurent[[#This Row],[Buget]]-TabelAnulCurent[[#This Row],[Costuri reale]])","v":{"v":50000,"d":"50,000.00 lei"}},{"$f":"IFERROR(TabelAnulCurent[[#This Row],[Lei rămași]]/TabelAnulCurent[[#This Row],[Buget]],\"\")","v":{"v":1,"d":"100.00%"}}]
[null,6000,"Cheltuieli client",{"$f":"SUMIF(RezumatCheltuieliLunare[Codul de contabilitate],TabelAnulCurent[[#This Row],[Codul de contabilitate]],RezumatCheltuieliLunare[Total])","v":{"v":0,"d":"0.00 lei"}},{"v":25000,"d":"25,000.00 lei"},{"$f":"IF(TabelAnulCurent[[#This Row],[Buget]]=\"\",\"\",TabelAnulCurent[[#This Row],[Buget]]-TabelAnulCurent[[#This Row],[Costuri reale]])","v":{"v":25000,"d":"25,000.00 lei"}},{"$f":"IFERROR(TabelAnulCurent[[#This Row],[Lei rămași]]/TabelAnulCurent[[#This Row],[Buget]],\"\")","v":{"v":1,"d":"100.00%"}}]
[null,7000,"Computere",{"$f":"SUMIF(RezumatCheltuieliLunare[Codul de contabilitate],TabelAnulCurent[[#This Row],[Codul de contabilitate]],RezumatCheltuieliLunare[Total])","v":{"v":0,"d":"0.00 lei"}},{"v":75000,"d":"75,000.00 lei"},{"$f":"IF(TabelAnulCurent[[#This Row],[Buget]]=\"\",\"\",TabelAnulCurent[[#This Row],[Buget]]-TabelAnulCurent[[#This Row],[Costuri reale]])","v":{"v":75000,"d":"75,000.00 lei"}},{"$f":"IFERROR(TabelAnulCurent[[#This Row],[Lei rămași]]/TabelAnulCurent[[#This Row],[Buget]],\"\")","v":{"v":1,"d":"100.00%"}}]
[null,8000,"Asigurare de sănătate",{"$f":"SUMIF(RezumatCheltuieliLunare[Codul de contabilitate],TabelAnulCurent[[#This Row],[Codul de contabilitate]],RezumatCheltuieliLunare[Total])","v":{"v":0,"d":"0.00 lei"}},{"v":65000,"d":"65,000.00 lei"},{"$f":"IF(TabelAnulCurent[[#This Row],[Buget]]=\"\",\"\",TabelAnulCurent[[#This Row],[Buget]]-TabelAnulCurent[[#This Row],[Costuri reale]])","v":{"v":65000,"d":"65,000.00 lei"}},{"$f":"IFERROR(TabelAnulCurent[[#This Row],[Lei rămași]]/TabelAnulCurent[[#This Row],[Buget]],\"\")","v":{"v":1,"d":"100.00%"}}]
[null,9000,"Costuri clădire",{"$f":"SUMIF(RezumatCheltuieliLunare[Codul de contabilitate],TabelAnulCurent[[#This Row],[Codul de contabilitate]],RezumatCheltuieliLunare[Total])","v":{"v":0,"d":"0.00 lei"}},{"v":125000,"d":"125,000.00 lei"},{"$f":"IF(TabelAnulCurent[[#This Row],[Buget]]=\"\",\"\",TabelAnulCurent[[#This Row],[Buget]]-TabelAnulCurent[[#This Row],[Costuri reale]])","v":{"v":125000,"d":"125,000.00 lei"}},{"$f":"IFERROR(TabelAnulCurent[[#This Row],[Lei rămași]]/TabelAnulCurent[[#This Row],[Buget]],\"\")","v":{"v":1,"d":"100.00%"}}]
[null,10000,"Marketing",{"$f":"SUMIF(RezumatCheltuieliLunare[Codul de contabilitate],TabelAnulCurent[[#This Row],[Codul de contabilitate]],RezumatCheltuieliLunare[Total])","v":{"v":0,"d":"0.00 lei"}},{"v":100000,"d":"100,000.00 lei"},{"$f":"IF(TabelAnulCurent[[#This Row],[Buget]]=\"\",\"\",TabelAnulCurent[[#This Row],[Buget]]-TabelAnulCurent[[#This Row],[Costuri reale]])","v":{"v":100000,"d":"100,000.00 lei"}},{"$f":"IFERROR(TabelAnulCurent[[#This Row],[Lei rămași]]/TabelAnulCurent[[#This Row],[Buget]],\"\")","v":{"v":1,"d":"100.00%"}}]
[null,11000,"Caritate",{"$f":"SUMIF(RezumatCheltuieliLunare[Codul de contabilitate],TabelAnulCurent[[#This Row],[Codul de contabilitate]],RezumatCheltuieliLunare[Total])","v":{"v":0,"d":"0.00 lei"}},{"v":250000,"d":"250,000.00 lei"},{"$f":"IF(TabelAnulCurent[[#This Row],[Buget]]=\"\",\"\",TabelAnulCurent[[#This Row],[Buget]]-TabelAnulCurent[[#This Row],[Costuri reale]])","v":{"v":250000,"d":"250,000.00 lei"}},{"$f":"IFERROR(TabelAnulCurent[[#This Row],[Lei rămași]]/TabelAnulCurent[[#This Row],[Buget]],\"\")","v":{"v":1,"d":"100.00%"}}]
[null,12000,"Sponsorizări",{"$f":"SUMIF(RezumatCheltuieliLunare[Codul de contabilitate],TabelAnulCurent[[#This Row],[Codul de contabilitate]],RezumatCheltuieliLunare[Total])","v":{"v":0,"d":"0.00 lei"}},{"v":50000,"d":"50,000.00 lei"},{"$f":"IF(TabelAnulCurent[[#This Row],[Buget]]=\"\",\"\",TabelAnulCurent[[#This Row],[Buget]]-TabelAnulCurent[[#This Row],[Costuri reale]])","v":{"v":50000,"d":"50,000.00 lei"}},{"$f":"IFERROR(TabelAnulCurent[[#This Row],[Lei rămași]]/TabelAnulCurent[[#This Row],[Buget]],\"\")","v":{"v":1,"d":"100.00%"}}]
[null,"Total",null,{"$f":"SUBTOTAL(109,TabelAnulCurent[Costuri reale])","v":{"v":0,"d":"0.00 lei"}},{"$f":"SUBTOTAL(109,TabelAnulCurent[Buget])","v":{"v":1140000,"d":"1,140,000.00 lei"}},{"$f":"SUBTOTAL(109,TabelAnulCurent[Lei rămași])","v":{"v":1140000,"d":"1,140,000.00 lei"}},{"$f":"TabelAnulCurent[[#Totals],[Lei rămași]]/TabelAnulCurent[[#Totals],[Buget]]","v":{"v":1,"d":"100.00%"}}]

{"sheet":"REZUMAT CHELTUIELI LUNARE","index":1,"n_rows":18,"n_cols":17,"rows_kept":18,"merged":[[1,1,1,16]]}
[]
[null,"REZUMAT CHELTUIELI LUNARE"]
[null,"Slicerul pentru filtrarea datelor după Titlurile de cont se află în această celulă.",null,{"$f":"DATEVALUE(\"1-IAN.\"&_AN)","v":"2019-01-01"},{"$f":"DATEVALUE(\"1-FEB.\"&_AN)","v":"2019-02-01"},{"$f":"DATEVALUE(\"1-MAR.\"&_AN)","v":"2019-03-01"},{"$f":"DATEVALUE(\"1-APR.\"&_AN)","v":"2019-04-01"},{"$f":"DATEVALUE(\"1-MAI.\"&_AN)","v":"2019-05-01"},{"$f":"DATEVALUE(\"1-IUN.\"&_AN)","v":"2019-06-01"},{"$f":"DATEVALUE(\"1-IUL.\"&_AN)","v":"2019-07-01"},{"$f":"DATEVALUE(\"1-AUG.\"&_AN)","v":"2019-08-01"},{"$f":"DATEVALUE(\"1-SEP.\"&_AN)","v":"2019-09-01"},{"$f":"DATEVALUE(\"1-OCT.\"&_AN)","v":"2019-10-01"},{"$f":"DATEVALUE(\"1-NOI.\"&_AN)","v":"2019-11-01"},{"$f":"DATEVALUE(\"1-DEC.\"&_AN)","v":"2019-12-01"}]
[{"$nulls":3},{"$f":"EOMONTH(D3,0)","v":"2019-01-31"},{"$f":"EOMONTH(E3,0)","v":"2019-02-28"},{"$f":"EOMONTH(F3,0)","v":"2019-03-31"},{"$f":"EOMONTH(G3,0)","v":"2019-04-30"},{"$f":"EOMONTH(H3,0)","v":"2019-05-31"},{"$f":"EOMONTH(I3,0)","v":"2019-06-30"},"2019-07-31","2019-08-31","2019-09-30","2019-10-31","2019-11-30","2019-12-31"]
[null,"Codul de contabilitate","Titlu cont","Ianuarie","Februarie","Martie","Aprilie","Mai","Iunie","Iulie","August","Septembrie","Octombrie","Noiembrie","Decembrie","Total"," "]
[null,1000,"Publicitate",{"$f":"SUMIFS(CheltuieliStructurate[Verificați suma],CheltuieliStructurate[Codul de contabilitate],RezumatCheltuieliLunare[[#This Row],[Codul de contabilitate]],CheltuieliStructurate[Data facturii],\">=\"&D$3,CheltuieliStructurate[Data facturii],\"<=\"&D$4)+SUMIFS(Altele[Verificați suma],Altele[Codul de contabilitate],RezumatCheltuieliLunare[[#This Row],[Codul de contabilitate]],Altele[S-a inițiat o solicitare de verificare a datei],\">=\"&DATEVALUE(\" 1 \"&RezumatCheltuieliLunare[[#Headers],[Ianuarie]]&_AN),Altele[S-a inițiat o solicitare de verificare a datei],\"<=\"&D$4)","v":{"v":0,"d":"0.00 lei"}},{"$f":"SUMIFS(CheltuieliStructurate[Verificați suma],CheltuieliStructurate[Codul de contabilitate],RezumatCheltuieliLunare[[#This Row],[Codul de contabilitate]],CheltuieliStructurate[Data facturii],\">=\"&E$3,CheltuieliStructurate[Data facturii],\"<=\"&E$4)+SUMIFS(Altele[Verificați suma],Altele[Codul de contabilitate],RezumatCheltuieliLunare[[#This Row],[Codul de contabilitate]],Altele[S-a inițiat o solicitare de verificare a datei],\">=\"&DATEVALUE(\" 1 \"&RezumatCheltuieliLunare[[#Headers],[Februarie]]&_AN),Altele[S-a inițiat o solicitare de verificare a datei],\"<=\"&E$4)","v":{"v":0,"d":"0.00 lei"}},{"$f":"SUMIFS(CheltuieliStructurate[Verificați suma],CheltuieliStructurate[Codul de contabilitate],RezumatCheltuieliLunare[[#This Row],[Codul de contabilitate]],CheltuieliStructurate[Data facturii],\">=\"&F$3,CheltuieliStructurate[Data facturii],\"<=\"&F$4)+SUMIFS(Altele[Verificați suma],Altele[Codul de contabilitate],RezumatCheltuieliLunare[[#This Row],[Codul de contabilitate]],Altele[S-a inițiat o solicitare de verificare a datei],\">=\"&DATEVALUE(\" 1 \"&RezumatCheltuieliLunare[[#Headers],[Martie]]&_AN),Altele[S-a inițiat o solicitare de verificare a datei],\"<=\"&F$4)","v":{"v":0,"d":"0.00 lei"}},{"$f":"SUMIFS(CheltuieliStructurate[Verificați suma],CheltuieliStructurate[Codul de contabilitate],RezumatCheltuieliLunare[[#This Row],[Codul de contabilitate]],CheltuieliStructurate[Data facturii],\">=\"&G$3,CheltuieliStructurate[Data facturii],\"<=\"&G$4)+SUMIFS(Altele[Verificați suma],Altele[Codul de contabilitate],RezumatCheltuieliLunare[[#This Row],[Codul de contabilitate]],Altele[S-a inițiat o solicitare de verificare a datei],\">=\"&DATEVALUE(\" 1 \"&RezumatCheltuieliLunare[[#Headers],[Aprilie]]&_AN),Altele[S-a inițiat o solicitare de verificare a datei],\"<=\"&G$4)","v":{"v":0,"d":"0.00 lei"}},{"$f":"SUMIFS(CheltuieliStructurate[Verificați suma],CheltuieliStructurate[Codul de contabilitate],RezumatCheltuieliLunare[[#This Row],[Codul de contabilitate]],CheltuieliStructurate[Data facturii],\">=\"&H$3,CheltuieliStructurate[Data facturii],\"<=\"&H$4)+SUMIFS(Altele[Verificați suma],Altele[Codul de contabilitate],RezumatCheltuieliLunare[[#This Row],[Codul de contabilitate]],Altele[S-a inițiat o solicitare de verificare a datei],\">=\"&DATEVALUE(\" 1 \"&RezumatCheltuieliLunare[[#Headers],[Mai]]&_AN),Altele[S-a inițiat o solicitare de verificare a datei],\"<=\"&H$4)","v":{"v":0,"d":"0.00 lei"}},{"$f":"SUMIFS(CheltuieliStructurate[Verificați suma],CheltuieliStructurate[Codul de contabilitate],RezumatCheltuieliLunare[[#This Row],[Codul de contabilitate]],CheltuieliStructurate[Data facturii],\">=\"&I$3,CheltuieliStructurate[Data facturii],\"<=\"&I$4)+SUMIFS(Altele[Verificați suma],Altele[Codul de contabilitate],RezumatCheltuieliLunare[[#This Row],[Codul de contabilitate]],Altele[S-a inițiat o solicitare de verificare a datei],\">=\"&DATEVALUE(\" 1 \"&RezumatCheltuieliLunare[[#Headers],[Iunie]]&_AN),Altele[S-a inițiat o solicitare de verificare a datei],\"<=\"&I$4)","v":{"v":0,"d":"0.00 lei"}},{"$f":"SUMIFS(CheltuieliStructurate[Verificați suma],CheltuieliStructurate[Codul de contabilitate],RezumatCheltuieliLunare[[#This Row],[Codul de contabilitate]],CheltuieliStructurate[Data facturii],\">=\"&J$3,CheltuieliStructurate[Data facturii],\"<=\"&J$4)+SUMIFS(Altele[Verificați suma],Altele[Codul de contabilitate],RezumatCheltuieliLunare[[#This Row],[Codul de contabilitate]],Altele[S-a inițiat o solicitare de verificare a datei],\">=\"&DATEVALUE(\" 1 \"&RezumatCheltuieliLunare[[#Headers],[Iulie]]&_AN),Altele[S-a inițiat o solicitare de verificare a datei],\"<=\"&J$4)","v":{"v":0,"d":"0.00 lei"}},{"$f":"SUMIFS(CheltuieliStructurate[Verificați suma],CheltuieliStructurate[Codul de contabilitate],RezumatCheltuieliLunare[[#This Row],[Codul de contabilitate]],CheltuieliStructurate[Data facturii],\">=\"&K$3,CheltuieliStructurate[Data facturii],\"<=\"&K$4)+SUMIFS(Altele[Verificați suma],Altele[Codul de contabilitate],RezumatCheltuieliLunare[[#This Row],[Codul de contabilitate]],Altele[S-a inițiat o solicitare de verificare a datei],\">=\"&DATEVALUE(\" 1 \"&RezumatCheltuieliLunare[[#Headers],[August]]&_AN),Altele[S-a inițiat o solicitare de verificare a datei],\"<=\"&K$4)","v":{"v":0,"d":"0.00 lei"}},{"$f":"SUMIFS(CheltuieliStructurate[Verificați suma],CheltuieliStructurate[Codul de contabilitate],RezumatCheltuieliLunare[[#This Row],[Codul de contabilitate]],CheltuieliStructurate[Data facturii],\">=\"&L$3,CheltuieliStructurate[Data facturii],\"<=\"&L$4)+SUMIFS(Altele[Verificați suma],Altele[Codul de contabilitate],RezumatCheltuieliLunare[[#This Row],[Codul de contabilitate]],Altele[S-a inițiat o solicitare de verificare a datei],\">=\"&DATEVALUE(\" 1 \"&RezumatCheltuieliLunare[[#Headers],[Septembrie]]&_AN),Altele[S-a inițiat o solicitare de verificare a datei],\"<=\"&L$4)","v":{"v":0,"d":"0.00 lei"}},{"$f":"SUMIFS(CheltuieliStructurate[Verificați suma],CheltuieliStructurate[Codul de contabilitate],RezumatCheltuieliLunare[[#This Row],[Codul de contabilitate]],CheltuieliStructurate[Data facturii],\">=\"&M$3,CheltuieliStructurate[Data facturii],\"<=\"&M$4)+SUMIFS(Altele[Verificați suma],Altele[Codul de contabilitate],RezumatCheltuieliLunare[[#This Row],[Codul de contabilitate]],Altele[S-a inițiat o solicitare de verificare a datei],\">=\"&DATEVALUE(\" 1 \"&RezumatCheltuieliLunare[[#Headers],[Octombrie]]&_AN),Altele[S-a inițiat o solicitare de verificare a datei],\"<=\"&M$4)","v":{"v":0,"d":"0.00 lei"}},{"$f":"SUMIFS(CheltuieliStructurate[Verificați suma],CheltuieliStructurate[Codul de contabilitate],RezumatCheltuieliLunare[[#This Row],[Codul de contabilitate]],CheltuieliStructurate[Data facturii],\">=\"&N$3,CheltuieliStructurate[Data facturii],\"<=\"&N$4)+SUMIFS(Altele[Verificați suma],Altele[Codul de contabilitate],RezumatCheltuieliLunare[[#This Row],[Codul de contabilitate]],Altele[S-a inițiat o solicitare de verificare a datei],\">=\"&DATEVALUE(\" 1 \"&RezumatCheltuieliLunare[[#Headers],[Noiembrie]]&_AN),Altele[S-a inițiat o solicitare de verificare a datei],\"<=\"&N$4)","v":{"v":0,"d":"0.00 lei"}},{"$f":"SUMIFS(CheltuieliStructurate[Verificați suma],CheltuieliStructurate[Codul de contabilitate],RezumatCheltuieliLunare[[#This Row],[Codul de contabilitate]],CheltuieliStructurate[Data facturii],\">=\"&O$3,CheltuieliStructurate[Data facturii],\"<=\"&O$4)+SUMIFS(Altele[Verificați suma],Altele[Codul de contabilitate],RezumatCheltuieliLunare[[#This Row],[Codul de contabilitate]],Altele[S-a inițiat o solicitare de verificare a datei],\">=\"&DATEVALUE(\" 1 \"&RezumatCheltuieliLunare[[#Headers],[Decembrie]]&_AN),Altele[S-a inițiat o solicitare de verificare a datei],\"<=\"&O$4)","v":{"v":0,"d":"0.00 lei"}},{"$f":"SUM(RezumatCheltuieliLunare[[#This Row],[Ianuarie]:[Decembrie]])","v":{"v":0,"d":"0.00 lei"}}]
[null,2000,"Echipament birou",{"$f":"SUMIFS(CheltuieliStructurate[Verificați suma],CheltuieliStructurate[Codul de contabilitate],RezumatCheltuieliLunare[[#This Row],[Codul de contabilitate]],CheltuieliStructurate[Data facturii],\">=\"&D$3,CheltuieliStructurate[Data facturii],\"<=\"&D$4)+SUMIFS(Altele[Verificați suma],Altele[Codul de contabilitate],RezumatCheltuieliLunare[[#This Row],[Codul de contabilitate]],Altele[S-a inițiat o solicitare de verificare a datei],\">=\"&DATEVALUE(\" 1 \"&RezumatCheltuieliLunare[[#Headers],[Ianuarie]]&_AN),Altele[S-a inițiat o solicitare de verificare a datei],\"<=\"&D$4)","v":{"v":0,"d":"0.00 lei"}},{"$f":"SUMIFS(CheltuieliStructurate[Verificați suma],CheltuieliStructurate[Codul de contabilitate],RezumatCheltuieliLunare[[#This Row],[Codul de contabilitate]],CheltuieliStructurate[Data facturii],\">=\"&E$3,CheltuieliStructurate[Data facturii],\"<=\"&E$4)+SUMIFS(Altele[Verificați suma],Altele[Codul de contabilitate],RezumatCheltuieliLunare[[#This Row],[Codul de contabilitate]],Altele[S-a inițiat o solicitare de verificare a datei],\">=\"&DATEVALUE(\" 1 \"&RezumatCheltuieliLunare[[#Headers],[Februarie]]&_AN),Altele[S-a inițiat o solicitare de verificare a datei],\"<=\"&E$4)","v":{"v":0,"d":"0.00 lei"}},{"$f":"SUMIFS(CheltuieliStructurate[Verificați suma],CheltuieliStructurate[Codul de contabilitate],RezumatCheltuieliLunare[[#This Row],[Codul de contabilitate]],CheltuieliStructurate[Data facturii],\">=\"&F$3,CheltuieliStructurate[Data facturii],\"<=\"&F$4)+SUMIFS(Altele[Verificați suma],Altele[Codul de contabilitate],RezumatCheltuieliLunare[[#This Row],[Codul de contabilitate]],Altele[S-a inițiat o solicitare de verificare a datei],\">=\"&DATEVALUE(\" 1 \"&RezumatCheltuieliLunare[[#Headers],[Martie]]&_AN),Altele[S-a inițiat o solicitare de verificare a datei],\"<=\"&F$4)","v":{"v":0,"d":"0.00 lei"}},{"$f":"SUMIFS(CheltuieliStructurate[Verificați suma],CheltuieliStructurate[Codul de contabilitate],RezumatCheltuieliLunare[[#This Row],[Codul de contabilitate]],CheltuieliStructurate[Data facturii],\">=\"&G$3,CheltuieliStructurate[Data facturii],\"<=\"&G$4)+SUMIFS(Altele[Verificați suma],Altele[Codul de contabilitate],RezumatCheltuieliLunare[[#This Row],[Codul de contabilitate]],Altele[S-a inițiat o solicitare de verificare a datei],\">=\"&DATEVALUE(\" 1 \"&RezumatCheltuieliLunare[[#Headers],[Aprilie]]&_AN),Altele[S-a inițiat o solicitare de verificare a datei],\"<=\"&G$4)","v":{"v":0,"d":"0.00 lei"}},{"$f":"SUMIFS(CheltuieliStructurate[Verificați suma],CheltuieliStructurate[Codul de contabilitate],RezumatCheltuieliLunare[[#This Row],[Codul de contabilitate]],CheltuieliStructurate[Data facturii],\">=\"&H$3,CheltuieliStructurate[Data facturii],\"<=\"&H$4)+SUMIFS(Altele[Verificați suma],Altele[Codul de contabilitate],RezumatCheltuieliLunare[[#This Row],[Codul de contabilitate]],Altele[S-a inițiat o solicitare de verificare a datei],\">=\"&DATEVALUE(\" 1 \"&RezumatCheltuieliLunare[[#Headers],[Mai]]&_AN),Altele[S-a inițiat o solicitare de verificare a datei],\"<=\"&H$4)","v":{"v":0,"d":"0.00 lei"}},{"$f":"SUMIFS(CheltuieliStructurate[Verificați suma],CheltuieliStructurate[Codul de contabilitate],RezumatCheltuieliLunare[[#This Row],[Codul de contabilitate]],CheltuieliStructurate[Data facturii],\">=\"&I$3,CheltuieliStructurate[Data facturii],\"<=\"&I$4)+SUMIFS(Altele[Verificați suma],Altele[Codul de contabilitate],RezumatCheltuieliLunare[[#This Row],[Codul de contabilitate]],Altele[S-a inițiat o solicitare de verificare a datei],\">=\"&DATEVALUE(\" 1 \"&RezumatCheltuieliLunare[[#Headers],[Iunie]]&_AN),Altele[S-a inițiat o solicitare de verificare a datei],\"<=\"&I$4)","v":{"v":0,"d":"0.00 lei"}},{"$f":"SUMIFS(CheltuieliStructurate[Verificați suma],CheltuieliStructurate[Codul de contabilitate],RezumatCheltuieliLunare[[#This Row],[Codul de contabilitate]],CheltuieliStructurate[Data facturii],\">=\"&J$3,CheltuieliStructurate[Data facturii],\"<=\"&J$4)+SUMIFS(Altele[Verificați suma],Altele[Codul de contabilitate],RezumatCheltuieliLunare[[#This Row],[Codul de contabilitate]],Altele[S-a inițiat o solicitare de verificare a datei],\">=\"&DATEVALUE(\" 1 \"&RezumatCheltuieliLunare[[#Headers],[Iulie]]&_AN),Altele[S-a inițiat o solicitare de verificare a datei],\"<=\"&J$4)","v":{"v":0,"d":"0.00 lei"}},{"$f":"SUMIFS(CheltuieliStructurate[Verificați suma],CheltuieliStructurate[Codul de contabilitate],RezumatCheltuieliLunare[[#This Row],[Codul de contabilitate]],CheltuieliStructurate[Data facturii],\">=\"&K$3,CheltuieliStructurate[Data facturii],\"<=\"&K$4)+SUMIFS(Altele[Verificați suma],Altele[Codul de contabilitate],RezumatCheltuieliLunare[[#This Row],[Codul de contabilitate]],Altele[S-a inițiat o solicitare de verificare a datei],\">=\"&DATEVALUE(\" 1 \"&RezumatCheltuieliLunare[[#Headers],[August]]&_AN),Altele[S-a inițiat o solicitare de verificare a datei],\"<=\"&K$4)","v":{"v":0,"d":"0.00 lei"}},{"$f":"SUMIFS(CheltuieliStructurate[Verificați suma],CheltuieliStructurate[Codul de contabilitate],RezumatCheltuieliLunare[[#This Row],[Codul de contabilitate]],CheltuieliStructurate[Data facturii],\">=\"&L$3,CheltuieliStructurate[Data facturii],\"<=\"&L$4)+SUMIFS(Altele[Verificați suma],Altele[Codul de contabilitate],RezumatCheltuieliLunare[[#This Row],[Codul de contabilitate]],Altele[S-a inițiat o solicitare de verificare a datei],\">=\"&DATEVALUE(\" 1 \"&RezumatCheltuieliLunare[[#Headers],[Septembrie]]&_AN),Altele[S-a inițiat o solicitare de verificare a datei],\"<=\"&L$4)","v":{"v":0,"d":"0.00 lei"}},{"$f":"SUMIFS(CheltuieliStructurate[Verificați suma],CheltuieliStructurate[Codul de contabilitate],RezumatCheltuieliLunare[[#This Row],[Codul de contabilitate]],CheltuieliStructurate[Data facturii],\">=\"&M$3,CheltuieliStructurate[Data facturii],\"<=\"&M$4)+SUMIFS(Altele[Verificați suma],Altele[Codul de contabilitate],RezumatCheltuieliLunare[[#This Row],[Codul de contabilitate]],Altele[S-a inițiat o solicitare de verificare a datei],\">=\"&DATEVALUE(\" 1 \"&RezumatCheltuieliLunare[[#Headers],[Octombrie]]&_AN),Altele[S-a inițiat o solicitare de verificare a datei],\"<=\"&M$4)","v":{"v":0,"d":"0.00 lei"}},{"$f":"SUMIFS(CheltuieliStructurate[Verificați suma],CheltuieliStructurate[Codul de contabilitate],RezumatCheltuieliLunare[[#This Row],[Codul de contabilitate]],CheltuieliStructurate[Data facturii],\">=\"&N$3,CheltuieliStructurate[Data facturii],\"<=\"&N$4)+SUMIFS(Altele[Verificați suma],Altele[Codul de contabilitate],RezumatCheltuieliLunare[[#This Row],[Codul de contabilitate]],Altele[S-a inițiat o solicitare de verificare a datei],\">=\"&DATEVALUE(\" 1 \"&RezumatCheltuieliLunare[[#Headers],[Noiembrie]]&_AN),Altele[S-a inițiat o solicitare de verificare a datei],\"<=\"&N$4)","v":{"v":0,"d":"0.00 lei"}},{"$f":"SUMIFS(CheltuieliStructurate[Verificați suma],CheltuieliStructurate[Codul de contabilitate],RezumatCheltuieliLunare[[#This Row],[Codul de contabilitate]],CheltuieliStructurate[Data facturii],\">=\"&O$3,CheltuieliStructurate[Data facturii],\"<=\"&O$4)+SUMIFS(Altele[Verificați suma],Altele[Codul de contabilitate],RezumatCheltuieliLunare[[#This Row],[Codul de contabilitate]],Altele[S-a inițiat o solicitare de verificare a datei],\">=\"&DATEVALUE(\" 1 \"&RezumatCheltuieliLunare[[#Headers],[Decembrie]]&_AN),Altele[S-a inițiat o solicitare de verificare a datei],\"<=\"&O$4)","v":{"v":0,"d":"0.00 lei"}},{"$f":"SUM(RezumatCheltuieliLunare[[#This Row],[Ianuarie]:[Decembrie]])","v":{"v":0,"d":"0.00 lei"}}]
[null,3000,"Imprimante",{"$f":"SUMIFS(CheltuieliStructurate[Verificați suma],CheltuieliStructurate[Codul de contabilitate],RezumatCheltuieliLunare[[#This Row],[Codul de contabilitate]],CheltuieliStructurate[Data facturii],\">=\"&D$3,CheltuieliStructurate[Data facturii],\"<=\"&D$4)+SUMIFS(Altele[Verificați suma],Altele[Codul de contabilitate],RezumatCheltuieliLunare[[#This Row],[Codul de contabilitate]],Altele[S-a inițiat o solicitare de verificare a datei],\">=\"&DATEVALUE(\" 1 \"&RezumatCheltuieliLunare[[#Headers],[Ianuarie]]&_AN),Altele[S-a inițiat o solicitare de verificare a datei],\"<=\"&D$4)","v":{"v":0,"d":"0.00 lei"}},{"$f":"SUMIFS(CheltuieliStructurate[Verificați suma],CheltuieliStructurate[Codul de contabilitate],RezumatCheltuieliLunare[[#This Row],[Codul de contabilitate]],CheltuieliStructurate[Data facturii],\">=\"&E$3,CheltuieliStructurate[Data facturii],\"<=\"&E$4)+SUMIFS(Altele[Verificați suma],Altele[Codul de contabilitate],RezumatCheltuieliLunare[[#This Row],[Codul de contabilitate]],Altele[S-a inițiat o solicitare de verificare a datei],\">=\"&DATEVALUE(\" 1 \"&RezumatCheltuieliLunare[[#Headers],[Februarie]]&_AN),Altele[S-a inițiat o solicitare de verificare a datei],\"<=\"&E$4)","v":{"v":0,"d":"0.00 lei"}},{"$f":"SUMIFS(CheltuieliStructurate[Verificați suma],CheltuieliStructurate[Codul de contabilitate],RezumatCheltuieliLunare[[#This Row],[Codul de contabilitate]],CheltuieliStructurate[Data facturii],\">=\"&F$3,CheltuieliStructurate[Data facturii],\"<=\"&F$4)+SUMIFS(Altele[Verificați suma],Altele[Codul de contabilitate],RezumatCheltuieliLunare[[#This Row],[Codul de contabilitate]],Altele[S-a inițiat o solicitare de verificare a datei],\">=\"&DATEVALUE(\" 1 \"&RezumatCheltuieliLunare[[#Headers],[Martie]]&_AN),Altele[S-a inițiat o solicitare de verificare a datei],\"<=\"&F$4)","v":{"v":0,"d":"0.00 lei"}},{"$f":"SUMIFS(CheltuieliStructurate[Verificați suma],CheltuieliStructurate[Codul de contabilitate],RezumatCheltuieliLunare[[#This Row],[Codul de contabilitate]],CheltuieliStructurate[Data facturii],\">=\"&G$3,CheltuieliStructurate[Data facturii],\"<=\"&G$4)+SUMIFS(Altele[Verificați suma],Altele[Codul de contabilitate],RezumatCheltuieliLunare[[#This Row],[Codul de contabilitate]],Altele[S-a inițiat o solicitare de verificare a datei],\">=\"&DATEVALUE(\" 1 \"&RezumatCheltuieliLunare[[#Headers],[Aprilie]]&_AN),Altele[S-a inițiat o solicitare de verificare a datei],\"<=\"&G$4)","v":{"v":0,"d":"0.00 lei"}},{"$f":"SUMIFS(CheltuieliStructurate[Verificați suma],CheltuieliStructurate[Codul de contabilitate],RezumatCheltuieliLunare[[#This Row],[Codul de contabilitate]],CheltuieliStructurate[Data facturii],\">=\"&H$3,CheltuieliStructurate[Data facturii],\"<=\"&H$4)+SUMIFS(Altele[Verificați suma],Altele[Codul de contabilitate],RezumatCheltuieliLunare[[#This Row],[Codul de contabilitate]],Altele[S-a inițiat o solicitare de verificare a datei],\">=\"&DATEVALUE(\" 1 \"&RezumatCheltuieliLunare[[#Headers],[Mai]]&_AN),Altele[S-a inițiat o solicitare de verificare a datei],\"<=\"&H$4)","v":{"v":0,"d":"0.00 lei"}},{"$f":"SUMIFS(CheltuieliStructurate[Verificați suma],CheltuieliStructurate[Codul de contabilitate],RezumatCheltuieliLunare[[#This Row],[Codul de contabilitate]],CheltuieliStructurate[Data facturii],\">=\"&I$3,CheltuieliStructurate[Data facturii],\"<=\"&I$4)+SUMIFS(Altele[Verificați suma],Altele[Codul de contabilitate],RezumatCheltuieliLunare[[#This Row],[Codul de contabilitate]],Altele[S-a inițiat o solicitare de verificare a datei],\">=\"&DATEVALUE(\" 1 \"&RezumatCheltuieliLunare[[#Headers],[Iunie]]&_AN),Altele[S-a inițiat o solicitare de verificare a datei],\"<=\"&I$4)","v":{"v":0,"d":"0.00 lei"}},{"$f":"SUMIFS(CheltuieliStructurate[Verificați suma],CheltuieliStructurate[Codul de contabilitate],RezumatCheltuieliLunare[[#This Row],[Codul de contabilitate]],CheltuieliStructurate[Data facturii],\">=\"&J$3,CheltuieliStructurate[Data facturii],\"<=\"&J$4)+SUMIFS(Altele[Verificați suma],Altele[Codul de contabilitate],RezumatCheltuieliLunare[[#This Row],[Codul de contabilitate]],Altele[S-a inițiat o solicitare de verificare a datei],\">=\"&DATEVALUE(\" 1 \"&RezumatCheltuieliLunare[[#Headers],[Iulie]]&_AN),Altele[S-a inițiat o solicitare de verificare a datei],\"<=\"&J$4)","v":{"v":0,"d":"0.00 lei"}},{"$f":"SUMIFS(CheltuieliStructurate[Verificați suma],CheltuieliStructurate[Codul de contabilitate],RezumatCheltuieliLunare[[#This Row],[Codul de contabilitate]],CheltuieliStructurate[Data facturii],\">=\"&K$3,CheltuieliStructurate[Data facturii],\"<=\"&K$4)+SUMIFS(Altele[Verificați suma],Altele[Codul de contabilitate],RezumatCheltuieliLunare[[#This Row],[Codul de contabilitate]],Altele[S-a inițiat o solicitare de verificare a datei],\">=\"&DATEVALUE(\" 1 \"&RezumatCheltuieliLunare[[#Headers],[August]]&_AN),Altele[S-a inițiat o solicitare de verificare a datei],\"<=\"&K$4)","v":{"v":0,"d":"0.00 lei"}},{"$f":"SUMIFS(CheltuieliStructurate[Verificați suma],CheltuieliStructurate[Codul de contabilitate],RezumatCheltuieliLunare[[#This Row],[Codul de contabilitate]],CheltuieliStructurate[Data facturii],\">=\"&L$3,CheltuieliStructurate[Data facturii],\"<=\"&L$4)+SUMIFS(Altele[Verificați suma],Altele[Codul de contabilitate],RezumatCheltuieliLunare[[#This Row],[Codul de contabilitate]],Altele[S-a inițiat o solicitare de verificare a datei],\">=\"&DATEVALUE(\" 1 \"&RezumatCheltuieliLunare[[#Headers],[Septembrie]]&_AN),Altele[S-a inițiat o solicitare de verificare a datei],\"<=\"&L$4)","v":{"v":0,"d":"0.00 lei"}},{"$f":"SUMIFS(CheltuieliStructurate[Verificați suma],CheltuieliStructurate[Codul de contabilitate],RezumatCheltuieliLunare[[#This Row],[Codul de contabilitate]],CheltuieliStructurate[Data facturii],\">=\"&M$3,CheltuieliStructurate[Data facturii],\"<=\"&M$4)+SUMIFS(Altele[Verificați suma],Altele[Codul de contabilitate],RezumatCheltuieliLunare[[#This Row],[Codul de contabilitate]],Altele[S-a inițiat o solicitare de verificare a datei],\">=\"&DATEVALUE(\" 1 \"&RezumatCheltuieliLunare[[#Headers],[Octombrie]]&_AN),Altele[S-a inițiat o solicitare de verificare a datei],\"<=\"&M$4)","v":{"v":0,"d":"0.00 lei"}},{"$f":"SUMIFS(CheltuieliStructurate[Verificați suma],CheltuieliStructurate[Codul de contabilitate],RezumatCheltuieliLunare[[#This Row],[Codul de contabilitate]],CheltuieliStructurate[Data facturii],\">=\"&N$3,CheltuieliStructurate[Data facturii],\"<=\"&N$4)+SUMIFS(Altele[Verificați suma],Altele[Codul de contabilitate],RezumatCheltuieliLunare[[#This Row],[Codul de contabilitate]],Altele[S-a inițiat o solicitare de verificare a datei],\">=\"&DATEVALUE(\" 1 \"&RezumatCheltuieliLunare[[#Headers],[Noiembrie]]&_AN),Altele[S-a inițiat o solicitare de verificare a datei],\"<=\"&N$4)","v":{"v":0,"d":"0.00 lei"}},{"$f":"SUMIFS(CheltuieliStructurate[Verificați suma],CheltuieliStructurate[Codul de contabilitate],RezumatCheltuieliLunare[[#This Row],[Codul de contabilitate]],CheltuieliStructurate[Data facturii],\">=\"&O$3,CheltuieliStructurate[Data facturii],\"<=\"&O$4)+SUMIFS(Altele[Verificați suma],Altele[Codul de contabilitate],RezumatCheltuieliLunare[[#This Row],[Codul de contabilitate]],Altele[S-a inițiat o solicitare de verificare a datei],\">=\"&DATEVALUE(\" 1 \"&RezumatCheltuieliLunare[[#Headers],[Decembrie]]&_AN),Altele[S-a inițiat o solicitare de verificare a datei],\"<=\"&O$4)","v":{"v":0,"d":"0.00 lei"}},{"$f":"SUM(RezumatCheltuieliLunare[[#This Row],[Ianuarie]:[Decembrie]])","v":{"v":0,"d":"0.00 lei"}}]
[null,4000,"Costuri server",{"$f":"SUMIFS(CheltuieliStructurate[Verificați suma],CheltuieliStructurate[Codul de contabilitate],RezumatCheltuieliLunare[[#This Row],[Codul de contabilitate]],CheltuieliStructurate[Data facturii],\">=\"&D$3,CheltuieliStructurate[Data facturii],\"<=\"&D$4)+SUMIFS(Altele[Verificați suma],Altele[Codul de contabilitate],RezumatCheltuieliLunare[[#This Row],[Codul de contabilitate]],Altele[S-a inițiat o solicitare de verificare a datei],\">=\"&DATEVALUE(\" 1 \"&RezumatCheltuieliLunare[[#Headers],[Ianuarie]]&_AN),Altele[S-a inițiat o solicitare de verificare a datei],\"<=\"&D$4)","v":{"v":0,"d":"0.00 lei"}},{"$f":"SUMIFS(CheltuieliStructurate[Verificați suma],CheltuieliStructurate[Codul de contabilitate],RezumatCheltuieliLunare[[#This Row],[Codul de contabilitate]],CheltuieliStructurate[Data facturii],\">=\"&E$3,CheltuieliStructurate[Data facturii],\"<=\"&E$4)+SUMIFS(Altele[Verificați suma],Altele[Codul de contabilitate],RezumatCheltuieliLunare[[#This Row],[Codul de contabilitate]],Altele[S-a inițiat o solicitare de verificare a datei],\">=\"&DATEVALUE(\" 1 \"&RezumatCheltuieliLunare[[#Headers],[Februarie]]&_AN),Altele[S-a inițiat o solicitare de verificare a datei],\"<=\"&E$4)","v":{"v":0,"d":"0.00 lei"}},{"$f":"SUMIFS(CheltuieliStructurate[Verificați suma],CheltuieliStructurate[Codul de contabilitate],RezumatCheltuieliLunare[[#This Row],[Codul de contabilitate]],CheltuieliStructurate[Data facturii],\">=\"&F$3,CheltuieliStructurate[Data facturii],\"<=\"&F$4)+SUMIFS(Altele[Verificați suma],Altele[Codul de contabilitate],RezumatCheltuieliLunare[[#This Row],[Codul de contabilitate]],Altele[S-a inițiat o solicitare de verificare a datei],\">=\"&DATEVALUE(\" 1 \"&RezumatCheltuieliLunare[[#Headers],[Martie]]&_AN),Altele[S-a inițiat o solicitare de verificare a datei],\"<=\"&F$4)","v":{"v":0,"d":"0.00 lei"}},{"$f":"SUMIFS(CheltuieliStructurate[Verificați suma],CheltuieliStructurate[Codul de contabilitate],RezumatCheltuieliLunare[[#This Row],[Codul de contabilitate]],CheltuieliStructurate[Data facturii],\">=\"&G$3,CheltuieliStructurate[Data facturii],\"<=\"&G$4)+SUMIFS(Altele[Verificați suma],Altele[Codul de contabilitate],RezumatCheltuieliLunare[[#This Row],[Codul de contabilitate]],Altele[S-a inițiat o solicitare de verificare a datei],\">=\"&DATEVALUE(\" 1 \"&RezumatCheltuieliLunare[[#Headers],[Aprilie]]&_AN),Altele[S-a inițiat o solicitare de verificare a datei],\"<=\"&G$4)","v":{"v":0,"d":"0.00 lei"}},{"$f":"SUMIFS(CheltuieliStructurate[Verificați suma],CheltuieliStructurate[Codul de contabilitate],RezumatCheltuieliLunare[[#This Row],[Codul de contabilitate]],CheltuieliStructurate[Data facturii],\">=\"&H$3,CheltuieliStructurate[Data facturii],\"<=\"&H$4)+SUMIFS(Altele[Verificați suma],Altele[Codul de contabilitate],RezumatCheltuieliLunare[[#This Row],[Codul de contabilitate]],Altele[S-a inițiat o solicitare de verificare a datei],\">=\"&DATEVALUE(\" 1 \"&RezumatCheltuieliLunare[[#Headers],[Mai]]&_AN),Altele[S-a inițiat o solicitare de verificare a datei],\"<=\"&H$4)","v":{"v":0,"d":"0.00 lei"}},{"$f":"SUMIFS(CheltuieliStructurate[Verificați suma],CheltuieliStructurate[Codul de contabilitate],RezumatCheltuieliLunare[[#This Row],[Codul de contabilitate]],CheltuieliStructurate[Data facturii],\">=\"&I$3,CheltuieliStructurate[Data facturii],\"<=\"&I$4)+SUMIFS(Altele[Verificați suma],Altele[Codul de contabilitate],RezumatCheltuieliLunare[[#This Row],[Codul de contabilitate]],Altele[S-a inițiat o solicitare de verificare a datei],\">=\"&DATEVALUE(\" 1 \"&RezumatCheltuieliLunare[[#Headers],[Iunie]]&_AN),Altele[S-a inițiat o solicitare de verificare a datei],\"<=\"&I$4)","v":{"v":0,"d":"0.00 lei"}},{"$f":"SUMIFS(CheltuieliStructurate[Verificați suma],CheltuieliStructurate[Codul de contabilitate],RezumatCheltuieliLunare[[#This Row],[Codul de contabilitate]],CheltuieliStructurate[Data facturii],\">=\"&J$3,CheltuieliStructurate[Data facturii],\"<=\"&J$4)+SUMIFS(Altele[Verificați suma],Altele[Codul de contabilitate],RezumatCheltuieliLunare[[#This Row],[Codul de contabilitate]],Altele[S-a inițiat o solicitare de verificare a datei],\">=\"&DATEVALUE(\" 1 \"&RezumatCheltuieliLunare[[#Headers],[Iulie]]&_AN),Altele[S-a inițiat o solicitare de verificare a datei],\"<=\"&J$4)","v":{"v":0,"d":"0.00 lei"}},{"$f":"SUMIFS(CheltuieliStructurate[Verificați suma],CheltuieliStructurate[Codul de contabilitate],RezumatCheltuieliLunare[[#This Row],[Codul de contabilitate]],CheltuieliStructurate[Data facturii],\">=\"&K$3,CheltuieliStructurate[Data facturii],\"<=\"&K$4)+SUMIFS(Altele[Verificați suma],Altele[Codul de contabilitate],RezumatCheltuieliLunare[[#This Row],[Codul de contabilitate]],Altele[S-a inițiat o solicitare de verificare a datei],\">=\"&DATEVALUE(\" 1 \"&RezumatCheltuieliLunare[[#Headers],[August]]&_AN),Altele[S-a inițiat o solicitare de verificare a datei],\"<=\"&K$4)","v":{"v":0,"d":"0.00 lei"}},{"$f":"SUMIFS(CheltuieliStructurate[Verificați suma],CheltuieliStructurate[Codul de contabilitate],RezumatCheltuieliLunare[[#This Row],[Codul de contabilitate]],CheltuieliStructurate[Data facturii],\">=\"&L$3,CheltuieliStructurate[Data facturii],\"<=\"&L$4)+SUMIFS(Altele[Verificați suma],Altele[Codul de contabilitate],RezumatCheltuieliLunare[[#This Row],[Codul de contabilitate]],Altele[S-a inițiat o solicitare de verificare a datei],\">=\"&DATEVALUE(\" 1 \"&RezumatCheltuieliLunare[[#Headers],[Septembrie]]&_AN),Altele[S-a inițiat o solicitare de verificare a datei],\"<=\"&L$4)","v":{"v":0,"d":"0.00 lei"}},{"$f":"SUMIFS(CheltuieliStructurate[Verificați suma],CheltuieliStructurate[Codul de contabilitate],RezumatCheltuieliLunare[[#This Row],[Codul de contabilitate]],CheltuieliStructurate[Data facturii],\">=\"&M$3,CheltuieliStructurate[Data facturii],\"<=\"&M$4)+SUMIFS(Altele[Verificați suma],Altele[Codul de contabilitate],RezumatCheltuieliLunare[[#This Row],[Codul de contabilitate]],Altele[S-a inițiat o solicitare de verificare a datei],\">=\"&DATEVALUE(\" 1 \"&RezumatCheltuieliLunare[[#Headers],[Octombrie]]&_AN),Altele[S-a inițiat o solicitare de verificare a datei],\"<=\"&M$4)","v":{"v":0,"d":"0.00 lei"}},{"$f":"SUMIFS(CheltuieliStructurate[Verificați suma],CheltuieliStructurate[Codul de contabilitate],RezumatCheltuieliLunare[[#This Row],[Codul de contabilitate]],CheltuieliStructurate[Data facturii],\">=\"&N$3,CheltuieliStructurate[Data facturii],\"<=\"&N$4)+SUMIFS(Altele[Verificați suma],Altele[Codul de contabilitate],RezumatCheltuieliLunare[[#This Row],[Codul de contabilitate]],Altele[S-a inițiat o solicitare de verificare a datei],\">=\"&DATEVALUE(\" 1 \"&RezumatCheltuieliLunare[[#Headers],[Noiembrie]]&_AN),Altele[S-a inițiat o solicitare de verificare a datei],\"<=\"&N$4)","v":{"v":0,"d":"0.00 lei"}},{"$f":"SUMIFS(CheltuieliStructurate[Verificați suma],CheltuieliStructurate[Codul de contabilitate],RezumatCheltuieliLunare[[#This Row],[Codul de contabilitate]],CheltuieliStructurate[Data facturii],\">=\"&O$3,CheltuieliStructurate[Data facturii],\"<=\"&O$4)+SUMIFS(Altele[Verificați suma],Altele[Codul de contabilitate],RezumatCheltuieliLunare[[#This Row],[Codul de contabilitate]],Altele[S-a inițiat o solicitare de verificare a datei],\">=\"&DATEVALUE(\" 1 \"&RezumatCheltuieliLunare[[#Headers],[Decembrie]]&_AN),Altele[S-a inițiat o solicitare de verificare a datei],\"<=\"&O$4)","v":{"v":0,"d":"0.00 lei"}},{"$f":"SUM(RezumatCheltuieliLunare[[#This Row],[Ianuarie]:[Decembrie]])","v":{"v":0,"d":"0.00 lei"}}]
[null,5000,"Consumabile",{"$f":"SUMIFS(CheltuieliStructurate[Verificați suma],CheltuieliStructurate[Codul de contabilitate],RezumatCheltuieliLunare[[#This Row],[Codul de contabilitate]],CheltuieliStructurate[Data facturii],\">=\"&D$3,CheltuieliStructurate[Data facturii],\"<=\"&D$4)+SUMIFS(Altele[Verificați suma],Altele[Codul de contabilitate],RezumatCheltuieliLunare[[#This Row],[Codul de contabilitate]],Altele[S-a inițiat o solicitare de verificare a datei],\">=\"&DATEVALUE(\" 1 \"&RezumatCheltuieliLunare[[#Headers],[Ianuarie]]&_AN),Altele[S-a inițiat o solicitare de verificare a datei],\"<=\"&D$4)","v":{"v":0,"d":"0.00 lei"}},{"$f":"SUMIFS(CheltuieliStructurate[Verificați suma],CheltuieliStructurate[Codul de contabilitate],RezumatCheltuieliLunare[[#This Row],[Codul de contabilitate]],CheltuieliStructurate[Data facturii],\">=\"&E$3,CheltuieliStructurate[Data facturii],\"<=\"&E$4)+SUMIFS(Altele[Verificați suma],Altele[Codul de contabilitate],RezumatCheltuieliLunare[[#This Row],[Codul de contabilitate]],Altele[S-a inițiat o solicitare de verificare a datei],\">=\"&DATEVALUE(\" 1 \"&RezumatCheltuieliLunare[[#Headers],[Februarie]]&_AN),Altele[S-a inițiat o solicitare de verificare a datei],\"<=\"&E$4)","v":{"v":0,"d":"0.00 lei"}},{"$f":"SUMIFS(CheltuieliStructurate[Verificați suma],CheltuieliStructurate[Codul de contabilitate],RezumatCheltuieliLunare[[#This Row],[Codul de contabilitate]],CheltuieliStructurate[Data facturii],\">=\"&F$3,CheltuieliStructurate[Data facturii],\"<=\"&F$4)+SUMIFS(Altele[Verificați suma],Altele[Codul de contabilitate],RezumatCheltuieliLunare[[#This Row],[Codul de contabilitate]],Altele[S-a inițiat o solicitare de verificare a datei],\">=\"&DATEVALUE(\" 1 \"&RezumatCheltuieliLunare[[#Headers],[Martie]]&_AN),Altele[S-a inițiat o solicitare de verificare a datei],\"<=\"&F$4)","v":{"v":0,"d":"0.00 lei"}},{"$f":"SUMIFS(CheltuieliStructurate[Verificați suma],CheltuieliStructurate[Codul de contabilitate],RezumatCheltuieliLunare[[#This Row],[Codul de contabilitate]],CheltuieliStructurate[Data facturii],\">=\"&G$3,CheltuieliStructurate[Data facturii],\"<=\"&G$4)+SUMIFS(Altele[Verificați suma],Altele[Codul de contabilitate],RezumatCheltuieliLunare[[#This Row],[Codul de contabilitate]],Altele[S-a inițiat o solicitare de verificare a datei],\">=\"&DATEVALUE(\" 1 \"&RezumatCheltuieliLunare[[#Headers],[Aprilie]]&_AN),Altele[S-a inițiat o solicitare de verificare a datei],\"<=\"&G$4)","v":{"v":0,"d":"0.00 lei"}},{"$f":"SUMIFS(CheltuieliStructurate[Verificați suma],CheltuieliStructurate[Codul de contabilitate],RezumatCheltuieliLunare[[#This Row],[Codul de contabilitate]],CheltuieliStructurate[Data facturii],\">=\"&H$3,CheltuieliStructurate[Data facturii],\"<=\"&H$4)+SUMIFS(Altele[Verificați suma],Altele[Codul de contabilitate],RezumatCheltuieliLunare[[#This Row],[Codul de contabilitate]],Altele[S-a inițiat o solicitare de verificare a datei],\">=\"&DATEVALUE(\" 1 \"&RezumatCheltuieliLunare[[#Headers],[Mai]]&_AN),Altele[S-a inițiat o solicitare de verificare a datei],\"<=\"&H$4)","v":{"v":0,"d":"0.00 lei"}},{"$f":"SUMIFS(CheltuieliStructurate[Verificați suma],CheltuieliStructurate[Codul de contabilitate],RezumatCheltuieliLunare[[#This Row],[Codul de contabilitate]],CheltuieliStructurate[Data facturii],\">=\"&I$3,CheltuieliStructurate[Data facturii],\"<=\"&I$4)+SUMIFS(Altele[Verificați suma],Altele[Codul de contabilitate],RezumatCheltuieliLunare[[#This Row],[Codul de contabilitate]],Altele[S-a inițiat o solicitare de verificare a datei],\">=\"&DATEVALUE(\" 1 \"&RezumatCheltuieliLunare[[#Headers],[Iunie]]&_AN),Altele[S-a inițiat o solicitare de verificare a datei],\"<=\"&I$4)","v":{"v":0,"d":"0.00 lei"}},{"$f":"SUMIFS(CheltuieliStructurate[Verificați suma],CheltuieliStructurate[Codul de contabilitate],RezumatCheltuieliLunare[[#This Row],[Codul de contabilitate]],CheltuieliStructurate[Data facturii],\">=\"&J$3,CheltuieliStructurate[Data facturii],\"<=\"&J$4)+SUMIFS(Altele[Verificați suma],Altele[Codul de contabilitate],RezumatCheltuieliLunare[[#This Row],[Codul de contabilitate]],Altele[S-a inițiat o solicitare de verificare a datei],\">=\"&DATEVALUE(\" 1 \"&RezumatCheltuieliLunare[[#Headers],[Iulie]]&_AN),Altele[S-a inițiat o solicitare de verificare a datei],\"<=\"&J$4)","v":{"v":0,"d":"0.00 lei"}},{"$f":"SUMIFS(CheltuieliStructurate[Verificați suma],CheltuieliStructurate[Codul de contabilitate],RezumatCheltuieliLunare[[#This Row],[Codul de contabilitate]],CheltuieliStructurate[Data facturii],\">=\"&K$3,CheltuieliStructurate[Data facturii],\"<=\"&K$4)+SUMIFS(Altele[Verificați suma],Altele[Codul de contabilitate],RezumatCheltuieliLunare[[#This Row],[Codul de contabilitate]],Altele[S-a inițiat o solicitare de verificare a datei],\">=\"&DATEVALUE(\" 1 \"&RezumatCheltuieliLunare[[#Headers],[August]]&_AN),Altele[S-a inițiat o solicitare de verificare a datei],\"<=\"&K$4)","v":{"v":0,"d":"0.00 lei"}},{"$f":"SUMIFS(CheltuieliStructurate[Verificați suma],CheltuieliStructurate[Codul de contabilitate],RezumatCheltuieliLunare[[#This Row],[Codul de contabilitate]],CheltuieliStructurate[Data facturii],\">=\"&L$3,CheltuieliStructurate[Data facturii],\"<=\"&L$4)+SUMIFS(Altele[Verificați suma],Altele[Codul de contabilitate],RezumatCheltuieliLunare[[#This Row],[Codul de contabilitate]],Altele[S-a inițiat o solicitare de verificare a datei],\">=\"&DATEVALUE(\" 1 \"&RezumatCheltuieliLunare[[#Headers],[Septembrie]]&_AN),Altele[S-a inițiat o solicitare de verificare a datei],\"<=\"&L$4)","v":{"v":0,"d":"0.00 lei"}},{"$f":"SUMIFS(CheltuieliStructurate[Verificați suma],CheltuieliStructurate[Codul de contabilitate],RezumatCheltuieliLunare[[#This Row],[Codul de contabilitate]],CheltuieliStructurate[Data facturii],\">=\"&M$3,CheltuieliStructurate[Data facturii],\"<=\"&M$4)+SUMIFS(Altele[Verificați suma],Altele[Codul de contabilitate],RezumatCheltuieliLunare[[#This Row],[Codul de contabilitate]],Altele[S-a inițiat o solicitare de verificare a datei],\">=\"&DATEVALUE(\" 1 \"&RezumatCheltuieliLunare[[#Headers],[Octombrie]]&_AN),Altele[S-a inițiat o solicitare de verificare a datei],\"<=\"&M$4)","v":{"v":0,"d":"0.00 lei"}},{"$f":"SUMIFS(CheltuieliStructurate[Verificați suma],CheltuieliStructurate[Codul de contabilitate],RezumatCheltuieliLunare[[#This Row],[Codul de contabilitate]],CheltuieliStructurate[Data facturii],\">=\"&N$3,CheltuieliStructurate[Data facturii],\"<=\"&N$4)+SUMIFS(Altele[Verificați suma],Altele[Codul de contabilitate],RezumatCheltuieliLunare[[#This Row],[Codul de contabilitate]],Altele[S-a inițiat o solicitare de verificare a datei],\">=\"&DATEVALUE(\" 1 \"&RezumatCheltuieliLunare[[#Headers],[Noiembrie]]&_AN),Altele[S-a inițiat o solicitare de verificare a datei],\"<=\"&N$4)","v":{"v":0,"d":"0.00 lei"}},{"$f":"SUMIFS(CheltuieliStructurate[Verificați suma],CheltuieliStructurate[Codul de contabilitate],RezumatCheltuieliLunare[[#This Row],[Codul de contabilitate]],CheltuieliStructurate[Data facturii],\">=\"&O$3,CheltuieliStructurate[Data facturii],\"<=\"&O$4)+SUMIFS(Altele[Verificați suma],Altele[Codul de contabilitate],RezumatCheltuieliLunare[[#This Row],[Codul de contabilitate]],Altele[S-a inițiat o solicitare de verificare a datei],\">=\"&DATEVALUE(\" 1 \"&RezumatCheltuieliLunare[[#Headers],[Decembrie]]&_AN),Altele[S-a inițiat o solicitare de verificare a datei],\"<=\"&O$4)","v":{"v":0,"d":"0.00 lei"}},{"$f":"SUM(RezumatCheltuieliLunare[[#This Row],[Ianuarie]:[Decembrie]])","v":{"v":0,"d":"0.00 lei"}}]
[null,6000,"Cheltuieli client",{"$f":"SUMIFS(CheltuieliStructurate[Verificați suma],CheltuieliStructurate[Codul de contabilitate],RezumatCheltuieliLunare[[#This Row],[Codul de contabilitate]],CheltuieliStructurate[Data facturii],\">=\"&D$3,CheltuieliStructurate[Data facturii],\"<=\"&D$4)+SUMIFS(Altele[Verificați suma],Altele[Codul de contabilitate],RezumatCheltuieliLunare[[#This Row],[Codul de contabilitate]],Altele[S-a inițiat o solicitare de verificare a datei],\">=\"&DATEVALUE(\" 1 \"&RezumatCheltuieliLunare[[#Headers],[Ianuarie]]&_AN),Altele[S-a inițiat o solicitare de verificare a datei],\"<=\"&D$4)","v":{"v":0,"d":"0.00 lei"}},{"$f":"SUMIFS(CheltuieliStructurate[Verificați suma],CheltuieliStructurate[Codul de contabilitate],RezumatCheltuieliLunare[[#This Row],[Codul de contabilitate]],CheltuieliStructurate[Data facturii],\">=\"&E$3,CheltuieliStructurate[Data facturii],\"<=\"&E$4)+SUMIFS(Altele[Verificați suma],Altele[Codul de contabilitate],RezumatCheltuieliLunare[[#This Row],[Codul de contabilitate]],Altele[S-a inițiat o solicitare de verificare a datei],\">=\"&DATEVALUE(\" 1 \"&RezumatCheltuieliLunare[[#Headers],[Februarie]]&_AN),Altele[S-a inițiat o solicitare de verificare a datei],\"<=\"&E$4)","v":{"v":0,"d":"0.00 lei"}},{"$f":"SUMIFS(CheltuieliStructurate[Verificați suma],CheltuieliStructurate[Codul de contabilitate],RezumatCheltuieliLunare[[#This Row],[Codul de contabilitate]],CheltuieliStructurate[Data facturii],\">=\"&F$3,CheltuieliStructurate[Data facturii],\"<=\"&F$4)+SUMIFS(Altele[Verificați suma],Altele[Codul de contabilitate],RezumatCheltuieliLunare[[#This Row],[Codul de contabilitate]],Altele[S-a inițiat o solicitare de verificare a datei],\">=\"&DATEVALUE(\" 1 \"&RezumatCheltuieliLunare[[#Headers],[Martie]]&_AN),Altele[S-a inițiat o solicitare de verificare a datei],\"<=\"&F$4)","v":{"v":0,"d":"0.00 lei"}},{"$f":"SUMIFS(CheltuieliStructurate[Verificați suma],CheltuieliStructurate[Codul de contabilitate],RezumatCheltuieliLunare[[#This Row],[Codul de contabilitate]],CheltuieliStructurate[Data facturii],\">=\"&G$3,CheltuieliStructurate[Data facturii],\"<=\"&G$4)+SUMIFS(Altele[Verificați suma],Altele[Codul de contabilitate],RezumatCheltuieliLunare[[#This Row],[Codul de contabilitate]],Altele[S-a inițiat o solicitare de verificare a datei],\">=\"&DATEVALUE(\" 1 \"&RezumatCheltuieliLunare[[#Headers],[Aprilie]]&_AN),Altele[S-a inițiat o solicitare de verificare a datei],\"<=\"&G$4)","v":{"v":0,"d":"0.00 lei"}},{"$f":"SUMIFS(CheltuieliStructurate[Verificați suma],CheltuieliStructurate[Codul de contabilitate],RezumatCheltuieliLunare[[#This Row],[Codul de contabilitate]],CheltuieliStructurate[Data facturii],\">=\"&H$3,CheltuieliStructurate[Data facturii],\"<=\"&H$4)+SUMIFS(Altele[Verificați suma],Altele[Codul de contabilitate],RezumatCheltuieliLunare[[#This Row],[Codul de contabilitate]],Altele[S-a inițiat o solicitare de verificare a datei],\">=\"&DATEVALUE(\" 1 \"&RezumatCheltuieliLunare[[#Headers],[Mai]]&_AN),Altele[S-a inițiat o solicitare de verificare a datei],\"<=\"&H$4)","v":{"v":0,"d":"0.00 lei"}},{"$f":"SUMIFS(CheltuieliStructurate[Verificați suma],CheltuieliStructurate[Codul de contabilitate],RezumatCheltuieliLunare[[#This Row],[Codul de contabilitate]],CheltuieliStructurate[Data facturii],\">=\"&I$3,CheltuieliStructurate[Data facturii],\"<=\"&I$4)+SUMIFS(Altele[Verificați suma],Altele[Codul de contabilitate],RezumatCheltuieliLunare[[#This Row],[Codul de contabilitate]],Altele[S-a inițiat o solicitare de verificare a datei],\">=\"&DATEVALUE(\" 1 \"&RezumatCheltuieliLunare[[#Headers],[Iunie]]&_AN),Altele[S-a inițiat o solicitare de verificare a datei],\"<=\"&I$4)","v":{"v":0,"d":"0.00 lei"}},{"$f":"SUMIFS(CheltuieliStructurate[Verificați suma],CheltuieliStructurate[Codul de contabilitate],RezumatCheltuieliLunare[[#This Row],[Codul de contabilitate]],CheltuieliStructurate[Data facturii],\">=\"&J$3,CheltuieliStructurate[Data facturii],\"<=\"&J$4)+SUMIFS(Altele[Verificați suma],Altele[Codul de contabilitate],RezumatCheltuieliLunare[[#This Row],[Codul de contabilitate]],Altele[S-a inițiat o solicitare de verificare a datei],\">=\"&DATEVALUE(\" 1 \"&RezumatCheltuieliLunare[[#Headers],[Iulie]]&_AN),Altele[S-a inițiat o solicitare de verificare a datei],\"<=\"&J$4)","v":{"v":0,"d":"0.00 lei"}},{"$f":"SUMIFS(CheltuieliStructurate[Verificați suma],CheltuieliStructurate[Codul de contabilitate],RezumatCheltuieliLunare[[#This Row],[Codul de contabilitate]],CheltuieliStructurate[Data facturii],\">=\"&K$3,CheltuieliStructurate[Data facturii],\"<=\"&K$4)+SUMIFS(Altele[Verificați suma],Altele[Codul de contabilitate],RezumatCheltuieliLunare[[#This Row],[Codul de contabilitate]],Altele[S-a inițiat o solicitare de verificare a datei],\">=\"&DATEVALUE(\" 1 \"&RezumatCheltuieliLunare[[#Headers],[August]]&_AN),Altele[S-a inițiat o solicitare de verificare a datei],\"<=\"&K$4)","v":{"v":0,"d":"0.00 lei"}},{"$f":"SUMIFS(CheltuieliStructurate[Verificați suma],CheltuieliStructurate[Codul de contabilitate],RezumatCheltuieliLunare[[#This Row],[Codul de contabilitate]],CheltuieliStructurate[Data facturii],\">=\"&L$3,CheltuieliStructurate[Data facturii],\"<=\"&L$4)+SUMIFS(Altele[Verificați suma],Altele[Codul de contabilitate],RezumatCheltuieliLunare[[#This Row],[Codul de contabilitate]],Altele[S-a inițiat o solicitare de verificare a datei],\">=\"&DATEVALUE(\" 1 \"&RezumatCheltuieliLunare[[#Headers],[Septembrie]]&_AN),Altele[S-a inițiat o solicitare de verificare a datei],\"<=\"&L$4)","v":{"v":0,"d":"0.00 lei"}},{"$f":"SUMIFS(CheltuieliStructurate[Verificați suma],CheltuieliStructurate[Codul de contabilitate],RezumatCheltuieliLunare[[#This Row],[Codul de contabilitate]],CheltuieliStructurate[Data facturii],\">=\"&M$3,CheltuieliStructurate[Data facturii],\"<=\"&M$4)+SUMIFS(Altele[Verificați suma],Altele[Codul de contabilitate],RezumatCheltuieliLunare[[#This Row],[Codul de contabilitate]],Altele[S-a inițiat o solicitare de verificare a datei],\">=\"&DATEVALUE(\" 1 \"&RezumatCheltuieliLunare[[#Headers],[Octombrie]]&_AN),Altele[S-a inițiat o solicitare de verificare a datei],\"<=\"&M$4)","v":{"v":0,"d":"0.00 lei"}},{"$f":"SUMIFS(CheltuieliStructurate[Verificați suma],CheltuieliStructurate[Codul de contabilitate],RezumatCheltuieliLunare[[#This Row],[Codul de contabilitate]],CheltuieliStructurate[Data facturii],\">=\"&N$3,CheltuieliStructurate[Data facturii],\"<=\"&N$4)+SUMIFS(Altele[Verificați suma],Altele[Codul de contabilitate],RezumatCheltuieliLunare[[#This Row],[Codul de contabilitate]],Altele[S-a inițiat o solicitare de verificare a datei],\">=\"&DATEVALUE(\" 1 \"&RezumatCheltuieliLunare[[#Headers],[Noiembrie]]&_AN),Altele[S-a inițiat o solicitare de verificare a datei],\"<=\"&N$4)","v":{"v":0,"d":"0.00 lei"}},{"$f":"SUMIFS(CheltuieliStructurate[Verificați suma],CheltuieliStructurate[Codul de contabilitate],RezumatCheltuieliLunare[[#This Row],[Codul de contabilitate]],CheltuieliStructurate[Data facturii],\">=\"&O$3,CheltuieliStructurate[Data facturii],\"<=\"&O$4)+SUMIFS(Altele[Verificați suma],Altele[Codul de contabilitate],RezumatCheltuieliLunare[[#This Row],[Codul de contabilitate]],Altele[S-a inițiat o solicitare de verificare a datei],\">=\"&DATEVALUE(\" 1 \"&RezumatCheltuieliLunare[[#Headers],[Decembrie]]&_AN),Altele[S-a inițiat o solicitare de verificare a datei],\"<=\"&O$4)","v":{"v":0,"d":"0.00 lei"}},{"$f":"SUM(RezumatCheltuieliLunare[[#This Row],[Ianuarie]:[Decembrie]])","v":{"v":0,"d":"0.00 lei"}}]
[null,7000,"Computere",{"$f":"SUMIFS(CheltuieliStructurate[Verificați suma],CheltuieliStructurate[Codul de contabilitate],RezumatCheltuieliLunare[[#This Row],[Codul de contabilitate]],CheltuieliStructurate[Data facturii],\">=\"&D$3,CheltuieliStructurate[Data facturii],\"<=\"&D$4)+SUMIFS(Altele[Verificați suma],Altele[Codul de contabilitate],RezumatCheltuieliLunare[[#This Row],[Codul de contabilitate]],Altele[S-a inițiat o solicitare de verificare a datei],\">=\"&DATEVALUE(\" 1 \"&RezumatCheltuieliLunare[[#Headers],[Ianuarie]]&_AN),Altele[S-a inițiat o solicitare de verificare a datei],\"<=\"&D$4)","v":{"v":0,"d":"0.00 lei"}},{"$f":"SUMIFS(CheltuieliStructurate[Verificați suma],CheltuieliStructurate[Codul de contabilitate],RezumatCheltuieliLunare[[#This Row],[Codul de contabilitate]],CheltuieliStructurate[Data facturii],\">=\"&E$3,CheltuieliStructurate[Data facturii],\"<=\"&E$4)+SUMIFS(Altele[Verificați suma],Altele[Codul de contabilitate],RezumatCheltuieliLunare[[#This Row],[Codul de contabilitate]],Altele[S-a inițiat o solicitare de verificare a datei],\">=\"&DATEVALUE(\" 1 \"&RezumatCheltuieliLunare[[#Headers],[Februarie]]&_AN),Altele[S-a inițiat o solicitare de verificare a datei],\"<=\"&E$4)","v":{"v":0,"d":"0.00 lei"}},{"$f":"SUMIFS(CheltuieliStructurate[Verificați suma],CheltuieliStructurate[Codul de contabilitate],RezumatCheltuieliLunare[[#This Row],[Codul de contabilitate]],CheltuieliStructurate[Data facturii],\">=\"&F$3,CheltuieliStructurate[Data facturii],\"<=\"&F$4)+SUMIFS(Altele[Verificați suma],Altele[Codul de contabilitate],RezumatCheltuieliLunare[[#This Row],[Codul de contabilitate]],Altele[S-a inițiat o solicitare de verificare a datei],\">=\"&DATEVALUE(\" 1 \"&RezumatCheltuieliLunare[[#Headers],[Martie]]&_AN),Altele[S-a inițiat o solicitare de verificare a datei],\"<=\"&F$4)","v":{"v":0,"d":"0.00 lei"}},{"$f":"SUMIFS(CheltuieliStructurate[Verificați suma],CheltuieliStructurate[Codul de contabilitate],RezumatCheltuieliLunare[[#This Row],[Codul de contabilitate]],CheltuieliStructurate[Data facturii],\">=\"&G$3,CheltuieliStructurate[Data facturii],\"<=\"&G$4)+SUMIFS(Altele[Verificați suma],Altele[Codul de contabilitate],RezumatCheltuieliLunare[[#This Row],[Codul de contabilitate]],Altele[S-a inițiat o solicitare de verificare a datei],\">=\"&DATEVALUE(\" 1 \"&RezumatCheltuieliLunare[[#Headers],[Aprilie]]&_AN),Altele[S-a inițiat o solicitare de verificare a datei],\"<=\"&G$4)","v":{"v":0,"d":"0.00 lei"}},{"$f":"SUMIFS(CheltuieliStructurate[Verificați suma],CheltuieliStructurate[Codul de contabilitate],RezumatCheltuieliLunare[[#This Row],[Codul de contabilitate]],CheltuieliStructurate[Data facturii],\">=\"&H$3,CheltuieliStructurate[Data facturii],\"<=\"&H$4)+SUMIFS(Altele[Verificați suma],Altele[Codul de contabilitate],RezumatCheltuieliLunare[[#This Row],[Codul de contabilitate]],Altele[S-a inițiat o solicitare de verificare a datei],\">=\"&DATEVALUE(\" 1 \"&RezumatCheltuieliLunare[[#Headers],[Mai]]&_AN),Altele[S-a inițiat o solicitare de verificare a datei],\"<=\"&H$4)","v":{"v":0,"d":"0.00 lei"}},{"$f":"SUMIFS(CheltuieliStructurate[Verificați suma],CheltuieliStructurate[Codul de contabilitate],RezumatCheltuieliLunare[[#This Row],[Codul de contabilitate]],CheltuieliStructurate[Data facturii],\">=\"&I$3,CheltuieliStructurate[Data facturii],\"<=\"&I$4)+SUMIFS(Altele[Verificați suma],Altele[Codul de contabilitate],RezumatCheltuieliLunare[[#This Row],[Codul de contabilitate]],Altele[S-a inițiat o solicitare de verificare a datei],\">=\"&DATEVALUE(\" 1 \"&RezumatCheltuieliLunare[[#Headers],[Iunie]]&_AN),Altele[S-a inițiat o solicitare de verificare a datei],\"<=\"&I$4)","v":{"v":0,"d":"0.00 lei"}},{"$f":"SUMIFS(CheltuieliStructurate[Verificați suma],CheltuieliStructurate[Codul de contabilitate],RezumatCheltuieliLunare[[#This Row],[Codul de contabilitate]],CheltuieliStructurate[Data facturii],\">=\"&J$3,CheltuieliStructurate[Data facturii],\"<=\"&J$4)+SUMIFS(Altele[Verificați suma],Altele[Codul de contabilitate],RezumatCheltuieliLunare[[#This Row],[Codul de contabilitate]],Altele[S-a inițiat o solicitare de verificare a datei],\">=\"&DATEVALUE(\" 1 \"&RezumatCheltuieliLunare[[#Headers],[Iulie]]&_AN),Altele[S-a inițiat o solicitare de verificare a datei],\"<=\"&J$4)","v":{"v":0,"d":"0.00 lei"}},{"$f":"SUMIFS(CheltuieliStructurate[Verificați suma],CheltuieliStructurate[Codul de contabilitate],RezumatCheltuieliLunare[[#This Row],[Codul de contabilitate]],CheltuieliStructurate[Data facturii],\">=\"&K$3,CheltuieliStructurate[Data facturii],\"<=\"&K$4)+SUMIFS(Altele[Verificați suma],Altele[Codul de contabilitate],RezumatCheltuieliLunare[[#This Row],[Codul de contabilitate]],Altele[S-a inițiat o solicitare de verificare a datei],\">=\"&DATEVALUE(\" 1 \"&RezumatCheltuieliLunare[[#Headers],[August]]&_AN),Altele[S-a inițiat o solicitare de verificare a datei],\"<=\"&K$4)","v":{"v":0,"d":"0.00 lei"}},{"$f":"SUMIFS(CheltuieliStructurate[Verificați suma],CheltuieliStructurate[Codul de contabilitate],RezumatCheltuieliLunare[[#This Row],[Codul de contabilitate]],CheltuieliStructurate[Data facturii],\">=\"&L$3,CheltuieliStructurate[Data facturii],\"<=\"&L$4)+SUMIFS(Altele[Verificați suma],Altele[Codul de contabilitate],RezumatCheltuieliLunare[[#This Row],[Codul de contabilitate]],Altele[S-a inițiat o solicitare de verificare a datei],\">=\"&DATEVALUE(\" 1 \"&RezumatCheltuieliLunare[[#Headers],[Septembrie]]&_AN),Altele[S-a inițiat o solicitare de verificare a datei],\"<=\"&L$4)","v":{"v":0,"d":"0.00 lei"}},{"$f":"SUMIFS(CheltuieliStructurate[Verificați suma],CheltuieliStructurate[Codul de contabilitate],RezumatCheltuieliLunare[[#This Row],[Codul de contabilitate]],CheltuieliStructurate[Data facturii],\">=\"&M$3,CheltuieliStructurate[Data facturii],\"<=\"&M$4)+SUMIFS(Altele[Verificați suma],Altele[Codul de contabilitate],RezumatCheltuieliLunare[[#This Row],[Codul de contabilitate]],Altele[S-a inițiat o solicitare de verificare a datei],\">=\"&DATEVALUE(\" 1 \"&RezumatCheltuieliLunare[[#Headers],[Octombrie]]&_AN),Altele[S-a inițiat o solicitare de verificare a datei],\"<=\"&M$4)","v":{"v":0,"d":"0.00 lei"}},{"$f":"SUMIFS(CheltuieliStructurate[Verificați suma],CheltuieliStructurate[Codul de contabilitate],RezumatCheltuieliLunare[[#This Row],[Codul de contabilitate]],CheltuieliStructurate[Data facturii],\">=\"&N$3,CheltuieliStructurate[Data facturii],\"<=\"&N$4)+SUMIFS(Altele[Verificați suma],Altele[Codul de contabilitate],RezumatCheltuieliLunare[[#This Row],[Codul de contabilitate]],Altele[S-a inițiat o solicitare de verificare a datei],\">=\"&DATEVALUE(\" 1 \"&RezumatCheltuieliLunare[[#Headers],[Noiembrie]]&_AN),Altele[S-a inițiat o solicitare de verificare a datei],\"<=\"&N$4)","v":{"v":0,"d":"0.00 lei"}},{"$f":"SUMIFS(CheltuieliStructurate[Verificați suma],CheltuieliStructurate[Codul de contabilitate],RezumatCheltuieliLunare[[#This Row],[Codul de contabilitate]],CheltuieliStructurate[Data facturii],\">=\"&O$3,CheltuieliStructurate[Data facturii],\"<=\"&O$4)+SUMIFS(Altele[Verificați suma],Altele[Codul de contabilitate],RezumatCheltuieliLunare[[#This Row],[Codul de contabilitate]],Altele[S-a inițiat o solicitare de verificare a datei],\">=\"&DATEVALUE(\" 1 \"&RezumatCheltuieliLunare[[#Headers],[Decembrie]]&_AN),Altele[S-a inițiat o solicitare de verificare a datei],\"<=\"&O$4)","v":{"v":0,"d":"0.00 lei"}},{"$f":"SUM(RezumatCheltuieliLunare[[#This Row],[Ianuarie]:[Decembrie]])","v":{"v":0,"d":"0.00 lei"}}]
[null,8000,"Asigurare de sănătate",{"$f":"SUMIFS(CheltuieliStructurate[Verificați suma],CheltuieliStructurate[Codul de contabilitate],RezumatCheltuieliLunare[[#This Row],[Codul de contabilitate]],CheltuieliStructurate[Data facturii],\">=\"&D$3,CheltuieliStructurate[Data facturii],\"<=\"&D$4)+SUMIFS(Altele[Verificați suma],Altele[Codul de contabilitate],RezumatCheltuieliLunare[[#This Row],[Codul de contabilitate]],Altele[S-a inițiat o solicitare de verificare a datei],\">=\"&DATEVALUE(\" 1 \"&RezumatCheltuieliLunare[[#Headers],[Ianuarie]]&_AN),Altele[S-a inițiat o solicitare de verificare a datei],\"<=\"&D$4)","v":{"v":0,"d":"0.00 lei"}},{"$f":"SUMIFS(CheltuieliStructurate[Verificați suma],CheltuieliStructurate[Codul de contabilitate],RezumatCheltuieliLunare[[#This Row],[Codul de contabilitate]],CheltuieliStructurate[Data facturii],\">=\"&E$3,CheltuieliStructurate[Data facturii],\"<=\"&E$4)+SUMIFS(Altele[Verificați suma],Altele[Codul de contabilitate],RezumatCheltuieliLunare[[#This Row],[Codul de contabilitate]],Altele[S-a inițiat o solicitare de verificare a datei],\">=\"&DATEVALUE(\" 1 \"&RezumatCheltuieliLunare[[#Headers],[Februarie]]&_AN),Altele[S-a inițiat o solicitare de verificare a datei],\"<=\"&E$4)","v":{"v":0,"d":"0.00 lei"}},{"$f":"SUMIFS(CheltuieliStructurate[Verificați suma],CheltuieliStructurate[Codul de contabilitate],RezumatCheltuieliLunare[[#This Row],[Codul de contabilitate]],CheltuieliStructurate[Data facturii],\">=\"&F$3,CheltuieliStructurate[Data facturii],\"<=\"&F$4)+SUMIFS(Altele[Verificați suma],Altele[Codul de contabilitate],RezumatCheltuieliLunare[[#This Row],[Codul de contabilitate]],Altele[S-a inițiat o solicitare de verificare a datei],\">=\"&DATEVALUE(\" 1 \"&RezumatCheltuieliLunare[[#Headers],[Martie]]&_AN),Altele[S-a inițiat o solicitare de verificare a datei],\"<=\"&F$4)","v":{"v":0,"d":"0.00 lei"}},{"$f":"SUMIFS(CheltuieliStructurate[Verificați suma],CheltuieliStructurate[Codul de contabilitate],RezumatCheltuieliLunare[[#This Row],[Codul de contabilitate]],CheltuieliStructurate[Data facturii],\">=\"&G$3,CheltuieliStructurate[Data facturii],\"<=\"&G$4)+SUMIFS(Altele[Verificați suma],Altele[Codul de contabilitate],RezumatCheltuieliLunare[[#This Row],[Codul de contabilitate]],Altele[S-a inițiat o solicitare de verificare a datei],\">=\"&DATEVALUE(\" 1 \"&RezumatCheltuieliLunare[[#Headers],[Aprilie]]&_AN),Altele[S-a inițiat o solicitare de verificare a datei],\"<=\"&G$4)","v":{"v":0,"d":"0.00 lei"}},{"$f":"SUMIFS(CheltuieliStructurate[Verificați suma],CheltuieliStructurate[Codul de contabilitate],RezumatCheltuieliLunare[[#This Row],[Codul de contabilitate]],CheltuieliStructurate[Data facturii],\">=\"&H$3,CheltuieliStructurate[Data facturii],\"<=\"&H$4)+SUMIFS(Altele[Verificați suma],Altele[Codul de contabilitate],RezumatCheltuieliLunare[[#This Row],[Codul de contabilitate]],Altele[S-a inițiat o solicitare de verificare a datei],\">=\"&DATEVALUE(\" 1 \"&RezumatCheltuieliLunare[[#Headers],[Mai]]&_AN),Altele[S-a inițiat o solicitare de verificare a datei],\"<=\"&H$4)","v":{"v":0,"d":"0.00 lei"}},{"$f":"SUMIFS(CheltuieliStructurate[Verificați suma],CheltuieliStructurate[Codul de contabilitate],RezumatCheltuieliLunare[[#This Row],[Codul de contabilitate]],CheltuieliStructurate[Data facturii],\">=\"&I$3,CheltuieliStructurate[Data facturii],\"<=\"&I$4)+SUMIFS(Altele[Verificați suma],Altele[Codul de contabilitate],RezumatCheltuieliLunare[[#This Row],[Codul de contabilitate]],Altele[S-a inițiat o solicitare de verificare a datei],\">=\"&DATEVALUE(\" 1 \"&RezumatCheltuieliLunare[[#Headers],[Iunie]]&_AN),Altele[S-a inițiat o solicitare de verificare a datei],\"<=\"&I$4)","v":{"v":0,"d":"0.00 lei"}},{"$f":"SUMIFS(CheltuieliStructurate[Verificați suma],CheltuieliStructurate[Codul de contabilitate],RezumatCheltuieliLunare[[#This Row],[Codul de contabilitate]],CheltuieliStructurate[Data facturii],\">=\"&J$3,CheltuieliStructurate[Data facturii],\"<=\"&J$4)+SUMIFS(Altele[Verificați suma],Altele[Codul de contabilitate],RezumatCheltuieliLunare[[#This Row],[Codul de contabilitate]],Altele[S-a inițiat o solicitare de verificare a datei],\">=\"&DATEVALUE(\" 1 \"&RezumatCheltuieliLunare[[#Headers],[Iulie]]&_AN),Altele[S-a inițiat o solicitare de verificare a datei],\"<=\"&J$4)","v":{"v":0,"d":"0.00 lei"}},{"$f":"SUMIFS(CheltuieliStructurate[Verificați suma],CheltuieliStructurate[Codul de contabilitate],RezumatCheltuieliLunare[[#This Row],[Codul de contabilitate]],CheltuieliStructurate[Data facturii],\">=\"&K$3,CheltuieliStructurate[Data facturii],\"<=\"&K$4)+SUMIFS(Altele[Verificați suma],Altele[Codul de contabilitate],RezumatCheltuieliLunare[[#This Row],[Codul de contabilitate]],Altele[S-a inițiat o solicitare de verificare a datei],\">=\"&DATEVALUE(\" 1 \"&RezumatCheltuieliLunare[[#Headers],[August]]&_AN),Altele[S-a inițiat o solicitare de verificare a datei],\"<=\"&K$4)","v":{"v":0,"d":"0.00 lei"}},{"$f":"SUMIFS(CheltuieliStructurate[Verificați suma],CheltuieliStructurate[Codul de contabilitate],RezumatCheltuieliLunare[[#This Row],[Codul de contabilitate]],CheltuieliStructurate[Data facturii],\">=\"&L$3,CheltuieliStructurate[Data facturii],\"<=\"&L$4)+SUMIFS(Altele[Verificați suma],Altele[Codul de contabilitate],RezumatCheltuieliLunare[[#This Row],[Codul de contabilitate]],Altele[S-a inițiat o solicitare de verificare a datei],\">=\"&DATEVALUE(\" 1 \"&RezumatCheltuieliLunare[[#Headers],[Septembrie]]&_AN),Altele[S-a inițiat o solicitare de verificare a datei],\"<=\"&L$4)","v":{"v":0,"d":"0.00 lei"}},{"$f":"SUMIFS(CheltuieliStructurate[Verificați suma],CheltuieliStructurate[Codul de contabilitate],RezumatCheltuieliLunare[[#This Row],[Codul de contabilitate]],CheltuieliStructurate[Data facturii],\">=\"&M$3,CheltuieliStructurate[Data facturii],\"<=\"&M$4)+SUMIFS(Altele[Verificați suma],Altele[Codul de contabilitate],RezumatCheltuieliLunare[[#This Row],[Codul de contabilitate]],Altele[S-a inițiat o solicitare de verificare a datei],\">=\"&DATEVALUE(\" 1 \"&RezumatCheltuieliLunare[[#Headers],[Octombrie]]&_AN),Altele[S-a inițiat o solicitare de verificare a datei],\"<=\"&M$4)","v":{"v":0,"d":"0.00 lei"}},{"$f":"SUMIFS(CheltuieliStructurate[Verificați suma],CheltuieliStructurate[Codul de contabilitate],RezumatCheltuieliLunare[[#This Row],[Codul de contabilitate]],CheltuieliStructurate[Data facturii],\">=\"&N$3,CheltuieliStructurate[Data facturii],\"<=\"&N$4)+SUMIFS(Altele[Verificați suma],Altele[Codul de contabilitate],RezumatCheltuieliLunare[[#This Row],[Codul de contabilitate]],Altele[S-a inițiat o solicitare de verificare a datei],\">=\"&DATEVALUE(\" 1 \"&RezumatCheltuieliLunare[[#Headers],[Noiembrie]]&_AN),Altele[S-a inițiat o solicitare de verificare a datei],\"<=\"&N$4)","v":{"v":0,"d":"0.00 lei"}},{"$f":"SUMIFS(CheltuieliStructurate[Verificați suma],CheltuieliStructurate[Codul de contabilitate],RezumatCheltuieliLunare[[#This Row],[Codul de contabilitate]],CheltuieliStructurate[Data facturii],\">=\"&O$3,CheltuieliStructurate[Data facturii],\"<=\"&O$4)+SUMIFS(Altele[Verificați suma],Altele[Codul de contabilitate],RezumatCheltuieliLunare[[#This Row],[Codul de contabilitate]],Altele[S-a inițiat o solicitare de verificare a datei],\">=\"&DATEVALUE(\" 1 \"&RezumatCheltuieliLunare[[#Headers],[Decembrie]]&_AN),Altele[S-a inițiat o solicitare de verificare a datei],\"<=\"&O$4)","v":{"v":0,"d":"0.00 lei"}},{"$f":"SUM(RezumatCheltuieliLunare[[#This Row],[Ianuarie]:[Decembrie]])","v":{"v":0,"d":"0.00 lei"}}]
[null,9000,"Costuri clădire",{"$f":"SUMIFS(CheltuieliStructurate[Verificați suma],CheltuieliStructurate[Codul de contabilitate],RezumatCheltuieliLunare[[#This Row],[Codul de contabilitate]],CheltuieliStructurate[Data facturii],\">=\"&D$3,CheltuieliStructurate[Data facturii],\"<=\"&D$4)+SUMIFS(Altele[Verificați suma],Altele[Codul de contabilitate],RezumatCheltuieliLunare[[#This Row],[Codul de contabilitate]],Altele[S-a inițiat o solicitare de verificare a datei],\">=\"&DATEVALUE(\" 1 \"&RezumatCheltuieliLunare[[#Headers],[Ianuarie]]&_AN),Altele[S-a inițiat o solicitare de verificare a datei],\"<=\"&D$4)","v":{"v":0,"d":"0.00 lei"}},{"$f":"SUMIFS(CheltuieliStructurate[Verificați suma],CheltuieliStructurate[Codul de contabilitate],RezumatCheltuieliLunare[[#This Row],[Codul de contabilitate]],CheltuieliStructurate[Data facturii],\">=\"&E$3,CheltuieliStructurate[Data facturii],\"<=\"&E$4)+SUMIFS(Altele[Verificați suma],Altele[Codul de contabilitate],RezumatCheltuieliLunare[[#This Row],[Codul de contabilitate]],Altele[S-a inițiat o solicitare de verificare a datei],\">=\"&DATEVALUE(\" 1 \"&RezumatCheltuieliLunare[[#Headers],[Februarie]]&_AN),Altele[S-a inițiat o solicitare de verificare a datei],\"<=\"&E$4)","v":{"v":0,"d":"0.00 lei"}},{"$f":"SUMIFS(CheltuieliStructurate[Verificați suma],CheltuieliStructurate[Codul de contabilitate],RezumatCheltuieliLunare[[#This Row],[Codul de contabilitate]],CheltuieliStructurate[Data facturii],\">=\"&F$3,CheltuieliStructurate[Data facturii],\"<=\"&F$4)+SUMIFS(Altele[Verificați suma],Altele[Codul de contabilitate],RezumatCheltuieliLunare[[#This Row],[Codul de contabilitate]],Altele[S-a inițiat o solicitare de verificare a datei],\">=\"&DATEVALUE(\" 1 \"&RezumatCheltuieliLunare[[#Headers],[Martie]]&_AN),Altele[S-a inițiat o solicitare de verificare a datei],\"<=\"&F$4)","v":{"v":0,"d":"0.00 lei"}},{"$f":"SUMIFS(CheltuieliStructurate[Verificați suma],CheltuieliStructurate[Codul de contabilitate],RezumatCheltuieliLunare[[#This Row],[Codul de contabilitate]],CheltuieliStructurate[Data facturii],\">=\"&G$3,CheltuieliStructurate[Data facturii],\"<=\"&G$4)+SUMIFS(Altele[Verificați suma],Altele[Codul de contabilitate],RezumatCheltuieliLunare[[#This Row],[Codul de contabilitate]],Altele[S-a inițiat o solicitare de verificare a datei],\">=\"&DATEVALUE(\" 1 \"&RezumatCheltuieliLunare[[#Headers],[Aprilie]]&_AN),Altele[S-a inițiat o solicitare de verificare a datei],\"<=\"&G$4)","v":{"v":0,"d":"0.00 lei"}},{"$f":"SUMIFS(CheltuieliStructurate[Verificați suma],CheltuieliStructurate[Codul de contabilitate],RezumatCheltuieliLunare[[#This Row],[Codul de contabilitate]],CheltuieliStructurate[Data facturii],\">=\"&H$3,CheltuieliStructurate[Data facturii],\"<=\"&H$4)+SUMIFS(Altele[Verificați suma],Altele[Codul de contabilitate],RezumatCheltuieliLunare[[#This Row],[Codul de contabilitate]],Altele[S-a inițiat o solicitare de verificare a datei],\">=\"&DATEVALUE(\" 1 \"&RezumatCheltuieliLunare[[#Headers],[Mai]]&_AN),Altele[S-a inițiat o solicitare de verificare a datei],\"<=\"&H$4)","v":{"v":0,"d":"0.00 lei"}},{"$f":"SUMIFS(CheltuieliStructurate[Verificați suma],CheltuieliStructurate[Codul de contabilitate],RezumatCheltuieliLunare[[#This Row],[Codul de contabilitate]],CheltuieliStructurate[Data facturii],\">=\"&I$3,CheltuieliStructurate[Data facturii],\"<=\"&I$4)+SUMIFS(Altele[Verificați suma],Altele[Codul de contabilitate],RezumatCheltuieliLunare[[#This Row],[Codul de contabilitate]],Altele[S-a inițiat o solicitare de verificare a datei],\">=\"&DATEVALUE(\" 1 \"&RezumatCheltuieliLunare[[#Headers],[Iunie]]&_AN),Altele[S-a inițiat o solicitare de verificare a datei],\"<=\"&I$4)","v":{"v":0,"d":"0.00 lei"}},{"$f":"SUMIFS(CheltuieliStructurate[Verificați suma],CheltuieliStructurate[Codul de contabilitate],RezumatCheltuieliLunare[[#This Row],[Codul de contabilitate]],CheltuieliStructurate[Data facturii],\">=\"&J$3,CheltuieliStructurate[Data facturii],\"<=\"&J$4)+SUMIFS(Altele[Verificați suma],Altele[Codul de contabilitate],RezumatCheltuieliLunare[[#This Row],[Codul de contabilitate]],Altele[S-a inițiat o solicitare de verificare a datei],\">=\"&DATEVALUE(\" 1 \"&RezumatCheltuieliLunare[[#Headers],[Iulie]]&_AN),Altele[S-a inițiat o solicitare de verificare a datei],\"<=\"&J$4)","v":{"v":0,"d":"0.00 lei"}},{"$f":"SUMIFS(CheltuieliStructurate[Verificați suma],CheltuieliStructurate[Codul de contabilitate],RezumatCheltuieliLunare[[#This Row],[Codul de contabilitate]],CheltuieliStructurate[Data facturii],\">=\"&K$3,CheltuieliStructurate[Data facturii],\"<=\"&K$4)+SUMIFS(Altele[Verificați suma],Altele[Codul de contabilitate],RezumatCheltuieliLunare[[#This Row],[Codul de contabilitate]],Altele[S-a inițiat o solicitare de verificare a datei],\">=\"&DATEVALUE(\" 1 \"&RezumatCheltuieliLunare[[#Headers],[August]]&_AN),Altele[S-a inițiat o solicitare de verificare a datei],\"<=\"&K$4)","v":{"v":0,"d":"0.00 lei"}},{"$f":"SUMIFS(CheltuieliStructurate[Verificați suma],CheltuieliStructurate[Codul de contabilitate],RezumatCheltuieliLunare[[#This Row],[Codul de contabilitate]],CheltuieliStructurate[Data facturii],\">=\"&L$3,CheltuieliStructurate[Data facturii],\"<=\"&L$4)+SUMIFS(Altele[Verificați suma],Altele[Codul de contabilitate],RezumatCheltuieliLunare[[#This Row],[Codul de contabilitate]],Altele[S-a inițiat o solicitare de verificare a datei],\">=\"&DATEVALUE(\" 1 \"&RezumatCheltuieliLunare[[#Headers],[Septembrie]]&_AN),Altele[S-a inițiat o solicitare de verificare a datei],\"<=\"&L$4)","v":{"v":0,"d":"0.00 lei"}},{"$f":"SUMIFS(CheltuieliStructurate[Verificați suma],CheltuieliStructurate[Codul de contabilitate],RezumatCheltuieliLunare[[#This Row],[Codul de contabilitate]],CheltuieliStructurate[Data facturii],\">=\"&M$3,CheltuieliStructurate[Data facturii],\"<=\"&M$4)+SUMIFS(Altele[Verificați suma],Altele[Codul de contabilitate],RezumatCheltuieliLunare[[#This Row],[Codul de contabilitate]],Altele[S-a inițiat o solicitare de verificare a datei],\">=\"&DATEVALUE(\" 1 \"&RezumatCheltuieliLunare[[#Headers],[Octombrie]]&_AN),Altele[S-a inițiat o solicitare de verificare a datei],\"<=\"&M$4)","v":{"v":0,"d":"0.00 lei"}},{"$f":"SUMIFS(CheltuieliStructurate[Verificați suma],CheltuieliStructurate[Codul de contabilitate],RezumatCheltuieliLunare[[#This Row],[Codul de contabilitate]],CheltuieliStructurate[Data facturii],\">=\"&N$3,CheltuieliStructurate[Data facturii],\"<=\"&N$4)+SUMIFS(Altele[Verificați suma],Altele[Codul de contabilitate],RezumatCheltuieliLunare[[#This Row],[Codul de contabilitate]],Altele[S-a inițiat o solicitare de verificare a datei],\">=\"&DATEVALUE(\" 1 \"&RezumatCheltuieliLunare[[#Headers],[Noiembrie]]&_AN),Altele[S-a inițiat o solicitare de verificare a datei],\"<=\"&N$4)","v":{"v":0,"d":"0.00 lei"}},{"$f":"SUMIFS(CheltuieliStructurate[Verificați suma],CheltuieliStructurate[Codul de contabilitate],RezumatCheltuieliLunare[[#This Row],[Codul de contabilitate]],CheltuieliStructurate[Data facturii],\">=\"&O$3,CheltuieliStructurate[Data facturii],\"<=\"&O$4)+SUMIFS(Altele[Verificați suma],Altele[Codul de contabilitate],RezumatCheltuieliLunare[[#This Row],[Codul de contabilitate]],Altele[S-a inițiat o solicitare de verificare a datei],\">=\"&DATEVALUE(\" 1 \"&RezumatCheltuieliLunare[[#Headers],[Decembrie]]&_AN),Altele[S-a inițiat o solicitare de verificare a datei],\"<=\"&O$4)","v":{"v":0,"d":"0.00 lei"}},{"$f":"SUM(RezumatCheltuieliLunare[[#This Row],[Ianuarie]:[Decembrie]])","v":{"v":0,"d":"0.00 lei"}}]
[null,10000,"Marketing",{"$f":"SUMIFS(CheltuieliStructurate[Verificați suma],CheltuieliStructurate[Codul de contabilitate],RezumatCheltuieliLunare[[#This Row],[Codul de contabilitate]],CheltuieliStructurate[Data facturii],\">=\"&D$3,CheltuieliStructurate[Data facturii],\"<=\"&D$4)+SUMIFS(Altele[Verificați suma],Altele[Codul de contabilitate],RezumatCheltuieliLunare[[#This Row],[Codul de contabilitate]],Altele[S-a inițiat o solicitare de verificare a datei],\">=\"&DATEVALUE(\" 1 \"&RezumatCheltuieliLunare[[#Headers],[Ianuarie]]&_AN),Altele[S-a inițiat o solicitare de verificare a datei],\"<=\"&D$4)","v":{"v":0,"d":"0.00 lei"}},{"$f":"SUMIFS(CheltuieliStructurate[Verificați suma],CheltuieliStructurate[Codul de contabilitate],RezumatCheltuieliLunare[[#This Row],[Codul de contabilitate]],CheltuieliStructurate[Data facturii],\">=\"&E$3,CheltuieliStructurate[Data facturii],\"<=\"&E$4)+SUMIFS(Altele[Verificați suma],Altele[Codul de contabilitate],RezumatCheltuieliLunare[[#This Row],[Codul de contabilitate]],Altele[S-a inițiat o solicitare de verificare a datei],\">=\"&DATEVALUE(\" 1 \"&RezumatCheltuieliLunare[[#Headers],[Februarie]]&_AN),Altele[S-a inițiat o solicitare de verificare a datei],\"<=\"&E$4)","v":{"v":0,"d":"0.00 lei"}},{"$f":"SUMIFS(CheltuieliStructurate[Verificați suma],CheltuieliStructurate[Codul de contabilitate],RezumatCheltuieliLunare[[#This Row],[Codul de contabilitate]],CheltuieliStructurate[Data facturii],\">=\"&F$3,CheltuieliStructurate[Data facturii],\"<=\"&F$4)+SUMIFS(Altele[Verificați suma],Altele[Codul de contabilitate],RezumatCheltuieliLunare[[#This Row],[Codul de contabilitate]],Altele[S-a inițiat o solicitare de verificare a datei],\">=\"&DATEVALUE(\" 1 \"&RezumatCheltuieliLunare[[#Headers],[Martie]]&_AN),Altele[S-a inițiat o solicitare de verificare a datei],\"<=\"&F$4)","v":{"v":0,"d":"0.00 lei"}},{"$f":"SUMIFS(CheltuieliStructurate[Verificați suma],CheltuieliStructurate[Codul de contabilitate],RezumatCheltuieliLunare[[#This Row],[Codul de contabilitate]],CheltuieliStructurate[Data facturii],\">=\"&G$3,CheltuieliStructurate[Data facturii],\"<=\"&G$4)+SUMIFS(Altele[Verificați suma],Altele[Codul de contabilitate],RezumatCheltuieliLunare[[#This Row],[Codul de contabilitate]],Altele[S-a inițiat o solicitare de verificare a datei],\">=\"&DATEVALUE(\" 1 \"&RezumatCheltuieliLunare[[#Headers],[Aprilie]]&_AN),Altele[S-a inițiat o solicitare de verificare a datei],\"<=\"&G$4)","v":{"v":0,"d":"0.00 lei"}},{"$f":"SUMIFS(CheltuieliStructurate[Verificați suma],CheltuieliStructurate[Codul de contabilitate],RezumatCheltuieliLunare[[#This Row],[Codul de contabilitate]],CheltuieliStructurate[Data facturii],\">=\"&H$3,CheltuieliStructurate[Data facturii],\"<=\"&H$4)+SUMIFS(Altele[Verificați suma],Altele[Codul de contabilitate],RezumatCheltuieliLunare[[#This Row],[Codul de contabilitate]],Altele[S-a inițiat o solicitare de verificare a datei],\">=\"&DATEVALUE(\" 1 \"&RezumatCheltuieliLunare[[#Headers],[Mai]]&_AN),Altele[S-a inițiat o solicitare de verificare a datei],\"<=\"&H$4)","v":{"v":0,"d":"0.00 lei"}},{"$f":"SUMIFS(CheltuieliStructurate[Verificați suma],CheltuieliStructurate[Codul de contabilitate],RezumatCheltuieliLunare[[#This Row],[Codul de contabilitate]],CheltuieliStructurate[Data facturii],\">=\"&I$3,CheltuieliStructurate[Data facturii],\"<=\"&I$4)+SUMIFS(Altele[Verificați suma],Altele[Codul de contabilitate],RezumatCheltuieliLunare[[#This Row],[Codul de contabilitate]],Altele[S-a inițiat o solicitare de verificare a datei],\">=\"&DATEVALUE(\" 1 \"&RezumatCheltuieliLunare[[#Headers],[Iunie]]&_AN),Altele[S-a inițiat o solicitare de verificare a datei],\"<=\"&I$4)","v":{"v":0,"d":"0.00 lei"}},{"$f":"SUMIFS(CheltuieliStructurate[Verificați suma],CheltuieliStructurate[Codul de contabilitate],RezumatCheltuieliLunare[[#This Row],[Codul de contabilitate]],CheltuieliStructurate[Data facturii],\">=\"&J$3,CheltuieliStructurate[Data facturii],\"<=\"&J$4)+SUMIFS(Altele[Verificați suma],Altele[Codul de contabilitate],RezumatCheltuieliLunare[[#This Row],[Codul de contabilitate]],Altele[S-a inițiat o solicitare de verificare a datei],\">=\"&DATEVALUE(\" 1 \"&RezumatCheltuieliLunare[[#Headers],[Iulie]]&_AN),Altele[S-a inițiat o solicitare de verificare a datei],\"<=\"&J$4)","v":{"v":0,"d":"0.00 lei"}},{"$f":"SUMIFS(CheltuieliStructurate[Verificați suma],CheltuieliStructurate[Codul de contabilitate],RezumatCheltuieliLunare[[#This Row],[Codul de contabilitate]],CheltuieliStructurate[Data facturii],\">=\"&K$3,CheltuieliStructurate[Data facturii],\"<=\"&K$4)+SUMIFS(Altele[Verificați suma],Altele[Codul de contabilitate],RezumatCheltuieliLunare[[#This Row],[Codul de contabilitate]],Altele[S-a inițiat o solicitare de verificare a datei],\">=\"&DATEVALUE(\" 1 \"&RezumatCheltuieliLunare[[#Headers],[August]]&_AN),Altele[S-a inițiat o solicitare de verificare a datei],\"<=\"&K$4)","v":{"v":0,"d":"0.00 lei"}},{"$f":"SUMIFS(CheltuieliStructurate[Verificați suma],CheltuieliStructurate[Codul de contabilitate],RezumatCheltuieliLunare[[#This Row],[Codul de contabilitate]],CheltuieliStructurate[Data facturii],\">=\"&L$3,CheltuieliStructurate[Data facturii],\"<=\"&L$4)+SUMIFS(Altele[Verificați suma],Altele[Codul de contabilitate],RezumatCheltuieliLunare[[#This Row],[Codul de contabilitate]],Altele[S-a inițiat o solicitare de verificare a datei],\">=\"&DATEVALUE(\" 1 \"&RezumatCheltuieliLunare[[#Headers],[Septembrie]]&_AN),Altele[S-a inițiat o solicitare de verificare a datei],\"<=\"&L$4)","v":{"v":0,"d":"0.00 lei"}},{"$f":"SUMIFS(CheltuieliStructurate[Verificați suma],CheltuieliStructurate[Codul de contabilitate],RezumatCheltuieliLunare[[#This Row],[Codul de contabilitate]],CheltuieliStructurate[Data facturii],\">=\"&M$3,CheltuieliStructurate[Data facturii],\"<=\"&M$4)+SUMIFS(Altele[Verificați suma],Altele[Codul de contabilitate],RezumatCheltuieliLunare[[#This Row],[Codul de contabilitate]],Altele[S-a inițiat o solicitare de verificare a datei],\">=\"&DATEVALUE(\" 1 \"&RezumatCheltuieliLunare[[#Headers],[Octombrie]]&_AN),Altele[S-a inițiat o solicitare de verificare a datei],\"<=\"&M$4)","v":{"v":0,"d":"0.00 lei"}},{"$f":"SUMIFS(CheltuieliStructurate[Verificați suma],CheltuieliStructurate[Codul de contabilitate],RezumatCheltuieliLunare[[#This Row],[Codul de contabilitate]],CheltuieliStructurate[Data facturii],\">=\"&N$3,CheltuieliStructurate[Data facturii],\"<=\"&N$4)+SUMIFS(Altele[Verificați suma],Altele[Codul de contabilitate],RezumatCheltuieliLunare[[#This Row],[Codul de contabilitate]],Altele[S-a inițiat o solicitare de verificare a datei],\">=\"&DATEVALUE(\" 1 \"&RezumatCheltuieliLunare[[#Headers],[Noiembrie]]&_AN),Altele[S-a inițiat o solicitare de verificare a datei],\"<=\"&N$4)","v":{"v":0,"d":"0.00 lei"}},{"$f":"SUMIFS(CheltuieliStructurate[Verificați suma],CheltuieliStructurate[Codul de contabilitate],RezumatCheltuieliLunare[[#This Row],[Codul de contabilitate]],CheltuieliStructurate[Data facturii],\">=\"&O$3,CheltuieliStructurate[Data facturii],\"<=\"&O$4)+SUMIFS(Altele[Verificați suma],Altele[Codul de contabilitate],RezumatCheltuieliLunare[[#This Row],[Codul de contabilitate]],Altele[S-a inițiat o solicitare de verificare a datei],\">=\"&DATEVALUE(\" 1 \"&RezumatCheltuieliLunare[[#Headers],[Decembrie]]&_AN),Altele[S-a inițiat o solicitare de verificare a datei],\"<=\"&O$4)","v":{"v":0,"d":"0.00 lei"}},{"$f":"SUM(RezumatCheltuieliLunare[[#This Row],[Ianuarie]:[Decembrie]])","v":{"v":0,"d":"0.00 lei"}}]
[null,11000,"Caritate",{"$f":"SUMIFS(CheltuieliStructurate[Verificați suma],CheltuieliStructurate[Codul de contabilitate],RezumatCheltuieliLunare[[#This Row],[Codul de contabilitate]],CheltuieliStructurate[Data facturii],\">=\"&D$3,CheltuieliStructurate[Data facturii],\"<=\"&D$4)+SUMIFS(Altele[Verificați suma],Altele[Codul de contabilitate],RezumatCheltuieliLunare[[#This Row],[Codul de contabilitate]],Altele[S-a inițiat o solicitare de verificare a datei],\">=\"&DATEVALUE(\" 1 \"&RezumatCheltuieliLunare[[#Headers],[Ianuarie]]&_AN),Altele[S-a inițiat o solicitare de verificare a datei],\"<=\"&D$4)","v":{"v":0,"d":"0.00 lei"}},{"$f":"SUMIFS(CheltuieliStructurate[Verificați suma],CheltuieliStructurate[Codul de contabilitate],RezumatCheltuieliLunare[[#This Row],[Codul de contabilitate]],CheltuieliStructurate[Data facturii],\">=\"&E$3,CheltuieliStructurate[Data facturii],\"<=\"&E$4)+SUMIFS(Altele[Verificați suma],Altele[Codul de contabilitate],RezumatCheltuieliLunare[[#This Row],[Codul de contabilitate]],Altele[S-a inițiat o solicitare de verificare a datei],\">=\"&DATEVALUE(\" 1 \"&RezumatCheltuieliLunare[[#Headers],[Februarie]]&_AN),Altele[S-a inițiat o solicitare de verificare a datei],\"<=\"&E$4)","v":{"v":0,"d":"0.00 lei"}},{"$f":"SUMIFS(CheltuieliStructurate[Verificați suma],CheltuieliStructurate[Codul de contabilitate],RezumatCheltuieliLunare[[#This Row],[Codul de contabilitate]],CheltuieliStructurate[Data facturii],\">=\"&F$3,CheltuieliStructurate[Data facturii],\"<=\"&F$4)+SUMIFS(Altele[Verificați suma],Altele[Codul de contabilitate],RezumatCheltuieliLunare[[#This Row],[Codul de contabilitate]],Altele[S-a inițiat o solicitare de verificare a datei],\">=\"&DATEVALUE(\" 1 \"&RezumatCheltuieliLunare[[#Headers],[Martie]]&_AN),Altele[S-a inițiat o solicitare de verificare a datei],\"<=\"&F$4)","v":{"v":0,"d":"0.00 lei"}},{"$f":"SUMIFS(CheltuieliStructurate[Verificați suma],CheltuieliStructurate[Codul de contabilitate],RezumatCheltuieliLunare[[#This Row],[Codul de contabilitate]],CheltuieliStructurate[Data facturii],\">=\"&G$3,CheltuieliStructurate[Data facturii],\"<=\"&G$4)+SUMIFS(Altele[Verificați suma],Altele[Codul de contabilitate],RezumatCheltuieliLunare[[#This Row],[Codul de contabilitate]],Altele[S-a inițiat o solicitare de verificare a datei],\">=\"&DATEVALUE(\" 1 \"&RezumatCheltuieliLunare[[#Headers],[Aprilie]]&_AN),Altele[S-a inițiat o solicitare de verificare a datei],\"<=\"&G$4)","v":{"v":0,"d":"0.00 lei"}},{"$f":"SUMIFS(CheltuieliStructurate[Verificați suma],CheltuieliStructurate[Codul de contabilitate],RezumatCheltuieliLunare[[#This Row],[Codul de contabilitate]],CheltuieliStructurate[Data facturii],\">=\"&H$3,CheltuieliStructurate[Data facturii],\"<=\"&H$4)+SUMIFS(Altele[Verificați suma],Altele[Codul de contabilitate],RezumatCheltuieliLunare[[#This Row],[Codul de contabilitate]],Altele[S-a inițiat o solicitare de verificare a datei],\">=\"&DATEVALUE(\" 1 \"&RezumatCheltuieliLunare[[#Headers],[Mai]]&_AN),Altele[S-a inițiat o solicitare de verificare a datei],\"<=\"&H$4)","v":{"v":0,"d":"0.00 lei"}},{"$f":"SUMIFS(CheltuieliStructurate[Verificați suma],CheltuieliStructurate[Codul de contabilitate],RezumatCheltuieliLunare[[#This Row],[Codul de contabilitate]],CheltuieliStructurate[Data facturii],\">=\"&I$3,CheltuieliStructurate[Data facturii],\"<=\"&I$4)+SUMIFS(Altele[Verificați suma],Altele[Codul de contabilitate],RezumatCheltuieliLunare[[#This Row],[Codul de contabilitate]],Altele[S-a inițiat o solicitare de verificare a datei],\">=\"&DATEVALUE(\" 1 \"&RezumatCheltuieliLunare[[#Headers],[Iunie]]&_AN),Altele[S-a inițiat o solicitare de verificare a datei],\"<=\"&I$4)","v":{"v":0,"d":"0.00 lei"}},{"$f":"SUMIFS(CheltuieliStructurate[Verificați suma],CheltuieliStructurate[Codul de contabilitate],RezumatCheltuieliLunare[[#This Row],[Codul de contabilitate]],CheltuieliStructurate[Data facturii],\">=\"&J$3,CheltuieliStructurate[Data facturii],\"<=\"&J$4)+SUMIFS(Altele[Verificați suma],Altele[Codul de contabilitate],RezumatCheltuieliLunare[[#This Row],[Codul de contabilitate]],Altele[S-a inițiat o solicitare de verificare a datei],\">=\"&DATEVALUE(\" 1 \"&RezumatCheltuieliLunare[[#Headers],[Iulie]]&_AN),Altele[S-a inițiat o solicitare de verificare a datei],\"<=\"&J$4)","v":{"v":0,"d":"0.00 lei"}},{"$f":"SUMIFS(CheltuieliStructurate[Verificați suma],CheltuieliStructurate[Codul de contabilitate],RezumatCheltuieliLunare[[#This Row],[Codul de contabilitate]],CheltuieliStructurate[Data facturii],\">=\"&K$3,CheltuieliStructurate[Data facturii],\"<=\"&K$4)+SUMIFS(Altele[Verificați suma],Altele[Codul de contabilitate],RezumatCheltuieliLunare[[#This Row],[Codul de contabilitate]],Altele[S-a inițiat o solicitare de verificare a datei],\">=\"&DATEVALUE(\" 1 \"&RezumatCheltuieliLunare[[#Headers],[August]]&_AN),Altele[S-a inițiat o solicitare de verificare a datei],\"<=\"&K$4)","v":{"v":0,"d":"0.00 lei"}},{"$f":"SUMIFS(CheltuieliStructurate[Verificați suma],CheltuieliStructurate[Codul de contabilitate],RezumatCheltuieliLunare[[#This Row],[Codul de contabilitate]],CheltuieliStructurate[Data facturii],\">=\"&L$3,CheltuieliStructurate[Data facturii],\"<=\"&L$4)+SUMIFS(Altele[Verificați suma],Altele[Codul de contabilitate],RezumatCheltuieliLunare[[#This Row],[Codul de contabilitate]],Altele[S-a inițiat o solicitare de verificare a datei],\">=\"&DATEVALUE(\" 1 \"&RezumatCheltuieliLunare[[#Headers],[Septembrie]]&_AN),Altele[S-a inițiat o solicitare de verificare a datei],\"<=\"&L$4)","v":{"v":0,"d":"0.00 lei"}},{"$f":"SUMIFS(CheltuieliStructurate[Verificați suma],CheltuieliStructurate[Codul de contabilitate],RezumatCheltuieliLunare[[#This Row],[Codul de contabilitate]],CheltuieliStructurate[Data facturii],\">=\"&M$3,CheltuieliStructurate[Data facturii],\"<=\"&M$4)+SUMIFS(Altele[Verificați suma],Altele[Codul de contabilitate],RezumatCheltuieliLunare[[#This Row],[Codul de contabilitate]],Altele[S-a inițiat o solicitare de verificare a datei],\">=\"&DATEVALUE(\" 1 \"&RezumatCheltuieliLunare[[#Headers],[Octombrie]]&_AN),Altele[S-a inițiat o solicitare de verificare a datei],\"<=\"&M$4)","v":{"v":0,"d":"0.00 lei"}},{"$f":"SUMIFS(CheltuieliStructurate[Verificați suma],CheltuieliStructurate[Codul de contabilitate],RezumatCheltuieliLunare[[#This Row],[Codul de contabilitate]],CheltuieliStructurate[Data facturii],\">=\"&N$3,CheltuieliStructurate[Data facturii],\"<=\"&N$4)+SUMIFS(Altele[Verificați suma],Altele[Codul de contabilitate],RezumatCheltuieliLunare[[#This Row],[Codul de contabilitate]],Altele[S-a inițiat o solicitare de verificare a datei],\">=\"&DATEVALUE(\" 1 \"&RezumatCheltuieliLunare[[#Headers],[Noiembrie]]&_AN),Altele[S-a inițiat o solicitare de verificare a datei],\"<=\"&N$4)","v":{"v":0,"d":"0.00 lei"}},{"$f":"SUMIFS(CheltuieliStructurate[Verificați suma],CheltuieliStructurate[Codul de contabilitate],RezumatCheltuieliLunare[[#This Row],[Codul de contabilitate]],CheltuieliStructurate[Data facturii],\">=\"&O$3,CheltuieliStructurate[Data facturii],\"<=\"&O$4)+SUMIFS(Altele[Verificați suma],Altele[Codul de contabilitate],RezumatCheltuieliLunare[[#This Row],[Codul de contabilitate]],Altele[S-a inițiat o solicitare de verificare a datei],\">=\"&DATEVALUE(\" 1 \"&RezumatCheltuieliLunare[[#Headers],[Decembrie]]&_AN),Altele[S-a inițiat o solicitare de verificare a datei],\"<=\"&O$4)","v":{"v":0,"d":"0.00 lei"}},{"$f":"SUM(RezumatCheltuieliLunare[[#This Row],[Ianuarie]:[Decembrie]])","v":{"v":0,"d":"0.00 lei"}}]
[null,12000,"Sponsorizări",{"$f":"SUMIFS(CheltuieliStructurate[Verificați suma],CheltuieliStructurate[Codul de contabilitate],RezumatCheltuieliLunare[[#This Row],[Codul de contabilitate]],CheltuieliStructurate[Data facturii],\">=\"&D$3,CheltuieliStructurate[Data facturii],\"<=\"&D$4)+SUMIFS(Altele[Verificați suma],Altele[Codul de contabilitate],RezumatCheltuieliLunare[[#This Row],[Codul de contabilitate]],Altele[S-a inițiat o solicitare de verificare a datei],\">=\"&DATEVALUE(\" 1 \"&RezumatCheltuieliLunare[[#Headers],[Ianuarie]]&_AN),Altele[S-a inițiat o solicitare de verificare a datei],\"<=\"&D$4)","v":{"v":0,"d":"0.00 lei"}},{"$f":"SUMIFS(CheltuieliStructurate[Verificați suma],CheltuieliStructurate[Codul de contabilitate],RezumatCheltuieliLunare[[#This Row],[Codul de contabilitate]],CheltuieliStructurate[Data facturii],\">=\"&E$3,CheltuieliStructurate[Data facturii],\"<=\"&E$4)+SUMIFS(Altele[Verificați suma],Altele[Codul de contabilitate],RezumatCheltuieliLunare[[#This Row],[Codul de contabilitate]],Altele[S-a inițiat o solicitare de verificare a datei],\">=\"&DATEVALUE(\" 1 \"&RezumatCheltuieliLunare[[#Headers],[Februarie]]&_AN),Altele[S-a inițiat o solicitare de verificare a datei],\"<=\"&E$4)","v":{"v":0,"d":"0.00 lei"}},{"$f":"SUMIFS(CheltuieliStructurate[Verificați suma],CheltuieliStructurate[Codul de contabilitate],RezumatCheltuieliLunare[[#This Row],[Codul de contabilitate]],CheltuieliStructurate[Data facturii],\">=\"&F$3,CheltuieliStructurate[Data facturii],\"<=\"&F$4)+SUMIFS(Altele[Verificați suma],Altele[Codul de contabilitate],RezumatCheltuieliLunare[[#This Row],[Codul de contabilitate]],Altele[S-a inițiat o solicitare de verificare a datei],\">=\"&DATEVALUE(\" 1 \"&RezumatCheltuieliLunare[[#Headers],[Martie]]&_AN),Altele[S-a inițiat o solicitare de verificare a datei],\"<=\"&F$4)","v":{"v":0,"d":"0.00 lei"}},{"$f":"SUMIFS(CheltuieliStructurate[Verificați suma],CheltuieliStructurate[Codul de contabilitate],RezumatCheltuieliLunare[[#This Row],[Codul de contabilitate]],CheltuieliStructurate[Data facturii],\">=\"&G$3,CheltuieliStructurate[Data facturii],\"<=\"&G$4)+SUMIFS(Altele[Verificați suma],Altele[Codul de contabilitate],RezumatCheltuieliLunare[[#This Row],[Codul de contabilitate]],Altele[S-a inițiat o solicitare de verificare a datei],\">=\"&DATEVALUE(\" 1 \"&RezumatCheltuieliLunare[[#Headers],[Aprilie]]&_AN),Altele[S-a inițiat o solicitare de verificare a datei],\"<=\"&G$4)","v":{"v":0,"d":"0.00 lei"}},{"$f":"SUMIFS(CheltuieliStructurate[Verificați suma],CheltuieliStructurate[Codul de contabilitate],RezumatCheltuieliLunare[[#This Row],[Codul de contabilitate]],CheltuieliStructurate[Data facturii],\">=\"&H$3,CheltuieliStructurate[Data facturii],\"<=\"&H$4)+SUMIFS(Altele[Verificați suma],Altele[Codul de contabilitate],RezumatCheltuieliLunare[[#This Row],[Codul de contabilitate]],Altele[S-a inițiat o solicitare de verificare a datei],\">=\"&DATEVALUE(\" 1 \"&RezumatCheltuieliLunare[[#Headers],[Mai]]&_AN),Altele[S-a inițiat o solicitare de verificare a datei],\"<=\"&H$4)","v":{"v":0,"d":"0.00 lei"}},{"$f":"SUMIFS(CheltuieliStructurate[Verificați suma],CheltuieliStructurate[Codul de contabilitate],RezumatCheltuieliLunare[[#This Row],[Codul de contabilitate]],CheltuieliStructurate[Data facturii],\">=\"&I$3,CheltuieliStructurate[Data facturii],\"<=\"&I$4)+SUMIFS(Altele[Verificați suma],Altele[Codul de contabilitate],RezumatCheltuieliLunare[[#This Row],[Codul de contabilitate]],Altele[S-a inițiat o solicitare de verificare a datei],\">=\"&DATEVALUE(\" 1 \"&RezumatCheltuieliLunare[[#Headers],[Iunie]]&_AN),Altele[S-a inițiat o solicitare de verificare a datei],\"<=\"&I$4)","v":{"v":0,"d":"0.00 lei"}},{"$f":"SUMIFS(CheltuieliStructurate[Verificați suma],CheltuieliStructurate[Codul de contabilitate],RezumatCheltuieliLunare[[#This Row],[Codul de contabilitate]],CheltuieliStructurate[Data facturii],\">=\"&J$3,CheltuieliStructurate[Data facturii],\"<=\"&J$4)+SUMIFS(Altele[Verificați suma],Altele[Codul de contabilitate],RezumatCheltuieliLunare[[#This Row],[Codul de contabilitate]],Altele[S-a inițiat o solicitare de verificare a datei],\">=\"&DATEVALUE(\" 1 \"&RezumatCheltuieliLunare[[#Headers],[Iulie]]&_AN),Altele[S-a inițiat o solicitare de verificare a datei],\"<=\"&J$4)","v":{"v":0,"d":"0.00 lei"}},{"$f":"SUMIFS(CheltuieliStructurate[Verificați suma],CheltuieliStructurate[Codul de contabilitate],RezumatCheltuieliLunare[[#This Row],[Codul de contabilitate]],CheltuieliStructurate[Data facturii],\">=\"&K$3,CheltuieliStructurate[Data facturii],\"<=\"&K$4)+SUMIFS(Altele[Verificați suma],Altele[Codul de contabilitate],RezumatCheltuieliLunare[[#This Row],[Codul de contabilitate]],Altele[S-a inițiat o solicitare de verificare a datei],\">=\"&DATEVALUE(\" 1 \"&RezumatCheltuieliLunare[[#Headers],[August]]&_AN),Altele[S-a inițiat o solicitare de verificare a datei],\"<=\"&K$4)","v":{"v":0,"d":"0.00 lei"}},{"$f":"SUMIFS(CheltuieliStructurate[Verificați suma],CheltuieliStructurate[Codul de contabilitate],RezumatCheltuieliLunare[[#This Row],[Codul de contabilitate]],CheltuieliStructurate[Data facturii],\">=\"&L$3,CheltuieliStructurate[Data facturii],\"<=\"&L$4)+SUMIFS(Altele[Verificați suma],Altele[Codul de contabilitate],RezumatCheltuieliLunare[[#This Row],[Codul de contabilitate]],Altele[S-a inițiat o solicitare de verificare a datei],\">=\"&DATEVALUE(\" 1 \"&RezumatCheltuieliLunare[[#Headers],[Septembrie]]&_AN),Altele[S-a inițiat o solicitare de verificare a datei],\"<=\"&L$4)","v":{"v":0,"d":"0.00 lei"}},{"$f":"SUMIFS(CheltuieliStructurate[Verificați suma],CheltuieliStructurate[Codul de contabilitate],RezumatCheltuieliLunare[[#This Row],[Codul de contabilitate]],CheltuieliStructurate[Data facturii],\">=\"&M$3,CheltuieliStructurate[Data facturii],\"<=\"&M$4)+SUMIFS(Altele[Verificați suma],Altele[Codul de contabilitate],RezumatCheltuieliLunare[[#This Row],[Codul de contabilitate]],Altele[S-a inițiat o solicitare de verificare a datei],\">=\"&DATEVALUE(\" 1 \"&RezumatCheltuieliLunare[[#Headers],[Octombrie]]&_AN),Altele[S-a inițiat o solicitare de verificare a datei],\"<=\"&M$4)","v":{"v":0,"d":"0.00 lei"}},{"$f":"SUMIFS(CheltuieliStructurate[Verificați suma],CheltuieliStructurate[Codul de contabilitate],RezumatCheltuieliLunare[[#This Row],[Codul de contabilitate]],CheltuieliStructurate[Data facturii],\">=\"&N$3,CheltuieliStructurate[Data facturii],\"<=\"&N$4)+SUMIFS(Altele[Verificați suma],Altele[Codul de contabilitate],RezumatCheltuieliLunare[[#This Row],[Codul de contabilitate]],Altele[S-a inițiat o solicitare de verificare a datei],\">=\"&DATEVALUE(\" 1 \"&RezumatCheltuieliLunare[[#Headers],[Noiembrie]]&_AN),Altele[S-a inițiat o solicitare de verificare a datei],\"<=\"&N$4)","v":{"v":0,"d":"0.00 lei"}},{"$f":"SUMIFS(CheltuieliStructurate[Verificați suma],CheltuieliStructurate[Codul de contabilitate],RezumatCheltuieliLunare[[#This Row],[Codul de contabilitate]],CheltuieliStructurate[Data facturii],\">=\"&O$3,CheltuieliStructurate[Data facturii],\"<=\"&O$4)+SUMIFS(Altele[Verificați suma],Altele[Codul de contabilitate],RezumatCheltuieliLunare[[#This Row],[Codul de contabilitate]],Altele[S-a inițiat o solicitare de verificare a datei],\">=\"&DATEVALUE(\" 1 \"&RezumatCheltuieliLunare[[#Headers],[Decembrie]]&_AN),Altele[S-a inițiat o solicitare de verificare a datei],\"<=\"&O$4)","v":{"v":0,"d":"0.00 lei"}},{"$f":"SUM(RezumatCheltuieliLunare[[#This Row],[Ianuarie]:[Decembrie]])","v":{"v":0,"d":"0.00 lei"}}]
[null,"Total",null,{"$f":"SUBTOTAL(109,RezumatCheltuieliLunare[Ianuarie])","v":{"v":0,"d":"0.00 lei"}},{"$f":"SUBTOTAL(109,RezumatCheltuieliLunare[Februarie])","v":{"v":0,"d":"0.00 lei"}},{"$f":"SUBTOTAL(109,RezumatCheltuieliLunare[Martie])","v":{"v":0,"d":"0.00 lei"}},{"$f":"SUBTOTAL(109,RezumatCheltuieliLunare[Aprilie])","v":{"v":0,"d":"0.00 lei"}},{"$f":"SUBTOTAL(109,RezumatCheltuieliLunare[Mai])","v":{"v":0,"d":"0.00 lei"}},{"$f":"SUBTOTAL(109,RezumatCheltuieliLunare[Iunie])","v":{"v":0,"d":"0.00 lei"}},{"$f":"SUBTOTAL(109,RezumatCheltuieliLunare[Iulie])","v":{"v":0,"d":"0.00 lei"}},{"$f":"SUBTOTAL(109,RezumatCheltuieliLunare[August])","v":{"v":0,"d":"0.00 lei"}},{"$f":"SUBTOTAL(109,RezumatCheltuieliLunare[Septembrie])","v":{"v":0,"d":"0.00 lei"}},{"$f":"SUBTOTAL(109,RezumatCheltuieliLunare[Octombrie])","v":{"v":0,"d":"0.00 lei"}},{"$f":"SUBTOTAL(109,RezumatCheltuieliLunare[Noiembrie])","v":{"v":0,"d":"0.00 lei"}},{"$f":"SUBTOTAL(109,RezumatCheltuieliLunare[Decembrie])","v":{"v":0,"d":"0.00 lei"}},{"$f":"SUBTOTAL(109,RezumatCheltuieliLunare[Total])","v":{"v":0,"d":"0.00 lei"}}]

{"sheet":"CHELTUIELI STRUCTURATE","index":2,"n_rows":6,"n_cols":10,"rows_kept":6,"merged":[[1,1,1,9],[2,1,2,5],[2,6,2,9]]}
[]
[null,"STRUCTURĂ DE CHELTUIELI"]
[]
[null,"Codul de contabilitate","Data facturii","Nr. factură","Solicitată de","Verificați suma","Beneficiar","Verificați utilizarea","Metodă de distribuire","Data depunerii"]
[null,1000,"Dată",100,"Emil Antonescu",{"v":750.75,"d":"750.75 lei"},"Consolidated Messenger ","Expeditor","Corespondență","Dată"]
[null,7000,"Dată",101,"Valeriu Nechita",{"v":2500,"d":"2,500.00 lei"},"A. Datum Corporation ","2 computere desktop","Credit","Dată"]

{"sheet":"CARITATE ȘI SPONSORIZĂRI","index":3,"n_rows":6,"n_cols":12,"rows_kept":6,"merged":[[1,1,1,11],[2,1,2,5],[2,6,2,11]]}
[]
[null,"CARITATE ȘI SPONSORIZĂRI"]
[]
[null,"Codul de contabilitate","S-a inițiat o solicitare de verificare a datei","Solicitată de","Verificați suma","Contribuția de anul trecut","Beneficiar","Utilizată pentru","Aprobată de","Categorie","Metodă de distribuire","Data depunerii"]
[null,12000,"Dată","Virginia Mateescu",{"v":1000,"d":"1,000.00 lei"},{"v":12,"d":"12.00 lei"},"Școala de Artă ","Burse","Crina Codreanu","Artă","Cec","Dată"]
[null,11000,"Dată","Virginia Mateescu",{"v":2500,"d":"2,500.00 lei"},{"v":0,"d":"0.00 lei"},"Wingtip Toys ","Comunitate","Magda Florea","Comunitate","Cec","Dată"]